Workbook

Sheet Riemann
B1: Riemann Sums and Integration
C3: This program uses both
B4: left- and right-hand Riemann Sums
B5: to approximate the definite integral
B6: of any desired function
D7: y = f(x)
B8: on an interval from x = a to x = b.
A11: Enter the function in terms of x: f(x) = | F11: x^3
A14: Now enter the interval for x:
C15: xMin = | D15: 0
C16: xMax = | D16: 2
B19: How many subdivisions? (2-100)
C20: =F20+2 -> 10 | F20: 8
I26: ="For the Riemann Sums with " & TEXT(n,"0") & " subdivisions, " -> For the Riemann Sums with 10 subdivisions,
A27: Click each item below for suggestions and investigations
B28: Item 1 | I28: =" the left-hand sums = " & TEXT(Sheet2!Z5,"0.00000") -> the left-hand sums = 3.24000
B29: Item 2
B30: Item 3 | I30: =" and the right-hand sums = " & TEXT(Sheet2!Z6,"0.00000") -> and the right-hand sums = 4.84000
B31: Item 4
B32: Item 5 | I32: The actual area under the curve is about | N32: =Sheet2!Y3 -> 4.00000
A36: To access/download all the DIGMath Apps for Calculus
A37: Click this link: | C37: DIGMath for Calculus
A39: Created by: Sheldon P. Gordon
A40: Farmingdale State College
A41: Development of this module was supported by the
A42: NSF's Division of Undergraduate Education
A43: under grants DUE-0310123 and DUE-0442160.

Sheet TrapRule
B1: The Trapezoid Rule
B3: This DIGMath program uses the
B4: Trapezoid Rule
B5: to approximate the definite integral
B6: of any desired function
C7: y = f(x)
B8: on an interval from x = a to x = b.
A10: To change the function or the interval,
B11: click on the "Riemann" tab below
A13: The function here is y = f(x) = | D13: =Riemann!F11 -> x^3
A16: The interval for x is: | I16: ="Using the Trapezoid Rule with " & TEXT(nn,"0") & " subdivisions, " -> Using the Trapezoid Rule with 50 subdivisions,
C17: xMin = | D17: =xMin -> 0
C18: xMax = | D18: =xMax -> 2 | I18: =" the approximate area = " & TEXT(Sheet2!Y11,"0.00000") -> the approximate area = 4.00160
I20: The actual area under the curve is about | N20: =Sheet2!Y3 -> 4.00000
B21: How many subdivisions? (2-50)
C22: =F22+2 -> 50 | F22: 48
A25: Click each item below for suggestions and investigations
B26: Item 1
B27: Item 2
B28: Item 3
B29: Item 4
A33: To access/download all the DIGMath Apps for Calculus
A34: Click this link: | C34: DIGMath for Calculus
A36: Created by: Sheldon P. Gordon
A37: Farmingdale State College
A38: Development of this module was supported by the
A39: NSF's Division of Undergraduate Education
A40: under grants DUE-0310123 and DUE-0442160.

Sheet MidPoint
B1: The Midoint Rule
B3: This DIGMath program uses the
B4: MidPoint Rule
B5: to approximate the definite integral
B6: of any desired function
C7: y = f(x)
B8: on an interval from x = a to x = b.
A10: To change the function or the interval,
B11: click on the "Riemann" tab below
A13: The function here is y = f(x) = | D13: =Riemann!F11 -> x^3
I14: ="Using the MidPoint Rule with " & TEXT(nnnn,"0") & " subdivisions, " -> Using the MidPoint Rule with 10 subdivisions,
A16: The interval for x is: | I16: =" the approximate area = " & TEXT(Sheet2!Y19,"0.00000") -> the approximate area = 3.98000
C17: xMin = | D17: =xMin -> 0
C18: xMax = | D18: =xMax -> 2 | I18: The actual area under the curve is about | N18: =Sheet2!Y3 -> 4.00000
B21: How many subdivisions? (2-50)
C22: =F22+2 -> 10 | F22: 8
A25: Click each item below for suggestions and investigations
B26: Item 1
B27: Item 2
B28: Item 3
B29: Item 4
A33: To access/download all the DIGMath Apps for Calculus
A34: Click this link: | C34: DIGMath for Calculus
A36: Created by: Sheldon P. Gordon
A37: Farmingdale State College
A38: Development of this module was supported by the
A39: NSF's Division of Undergraduate Education
A40: under grants DUE-0310123 and DUE-0442160.

Sheet Simpson
B1: Simpson's Rule
B3: This DIGMath program uses
B4: Simpson's Rule
B5: to approximate the definite integral
B6: of any desired function
C7: y = f(x)
B8: on an interval from x = a to x = b.
A10: To change the function or the interval,
B11: click on the "Riemann" tab below
A13: The function here is y = f(x) = | D13: =Riemann!F11 -> x^3
A16: The interval for x is: | I16: ="Using Simpson's Rule with " & TEXT(nnn,"0") & " subdivisions, " -> Using Simpson's Rule with 16 subdivisions,
C17: xMin = | D17: =xMin -> 0
C18: xMax = | D18: =xMax -> 2 | I18: =" the approximate area = " & TEXT(Sheet2!Y16,"0.00000") -> the approximate area = 4.00000
I20: The actual area under the curve is about | N20: =Sheet2!Y3 -> 4.00000
B21: How many subdivisions? (2-30)
C22: =2*F22+2 -> 16 | F22: 7
A26: Click each item below for suggestions and investigations
B27: Item 1
B28: Item 2
B29: Item 3
B30: Item 4
A34: To access/download all the DIGMath Apps for Calculus
A35: Click this link: | C35: DIGMath for Calculus
A37: Created by: Sheldon P. Gordon
A38: Farmingdale State College
A39: Development of this module was supported by the
A40: NSF's Division of Undergraduate Education
A41: under grants DUE-0310123 and DUE-0442160.

Sheet Sheet2
A1: fmin = | B1: =MIN(E3:E403) -> 0 | C1: i | D1: x | E1: y = f(x) | G1: Partition Valuess | K1: Left-Hand Sums | M1: RHS | N1: Trapezoids | P1: MidPoint Rule | R1: Simpson's Rule | U1: Simpson Calcs | X1: Simpson
A2: fmax = | B2: =MAX(E3:E403) -> 8 | H2: x | I2: f(x) | K2: x | L2: f(x) | M2: f(x) | N2: x | O2: f(x) | P2: x | Q2: f(x) | R2: x | S2: f(x) | T2: n | U2: f(x) | V2: mult | W2: product | Y2: Simp =
A3: Graph values | C3: 1 | D3: =Riemann!D15 -> 0 | E3: =x^3 -> 0 | I3: =E3 -> 0 | K3: =xMin -> 0 | L3: =0 -> 0 | M3: =0 -> 0 | N3: =xMin -> 0 | O3: =0 -> 0 | P3: =xMin -> 0 | Q3: =0 -> 0 | R3: =xMin -> 0 | S3: =0 -> 0 | T3: 0 | U3: =E655 -> 0 | V3: 1 | W3: =U3*V3 -> 0 | X3: =E3 -> 0 | Y3: =SUM(X3:X403)*B5/3 -> 4
C4: 2 | D4: =D3+Sheet2!B$5 -> 0.005 | E4: 1.25e-07 | G4: 0 | H4: =xMin -> 0 | J4: 0 | K4: =xMin -> 0 | L4: =E706 -> 0 | M4: =E707 -> 0.008 | N4: =xMin -> 0 | O4: =E404 -> 0 | P4: =xMin -> 0 | Q4: =E807 -> 0.001 | R4: =xMin -> 0 | S4: =E655 -> 0 | T4: 1 | U4: =E656 -> 0.001953125 | V4: 4 | W4: =U4*V4 -> 0.0078125 | X4: =4*E4 -> 5e-07
A5: delta x = | B5: =(Riemann!D16-Riemann!D15)/400 -> 0.005 | C5: 3 | D5: =D4+Sheet2!B$5 -> 0.01 | E5: 1e-06 | G5: 1 | H5: =H4+dx -> 0.2 | K5: =K4+dx -> 0.2 | L5: =L4 -> 0 | M5: =E707 -> 0.008 | N5: =N4+dxx -> 0.04 | O5: =E405 -> 6.4e-05 | P5: =P4+dxxxx -> 0.2 | Q5: =Q4 -> 0.001 | R5: =R4+dxxx -> 0.125 | S5: 0 | T5: 2 | U5: 0.015625 | V5: =IF(2*nnn>T5,2,IF(2*nnn=T5,1,0)) -> 2 | W5: 0.03125 | X5: =2*E5 -> 2e-06 | Y5: LHS= | Z5: =dx*(SUM(L3:L302)/2)-LOOKUP(n,J4:J315,L4:L315)*dx -> 3.24
C6: 4 | D6: =D5+Sheet2!B$5 -> 0.015 | E6: 3.375e-06 | G6: 2 | H6: 0.4 | K6: =K5 -> 0.2 | L6: 0 | M6: 0 | N6: =N5 -> 0.04 | O6: 0 | P6: =P5 -> 0.2 | Q6: 0 | R6: =R5 -> 0.125 | S6: =E656 -> 0.001953125 | T6: 3 | U6: 0.052734375 | V6: =IF(nnn>T5,4,0) -> 4 | W6: 0.2109375 | X6: =4*E6 -> 1.35e-05 | Y6: RHS= | Z6: =dx*(SUM(M4:M306)/2) -> 4.84
C7: 5 | D7: =D6+Sheet2!B$5 -> 0.02 | E7: 8e-06 | G7: 3 | H7: 0.6 | J7: 1 | K7: =K6 -> 0.2 | L7: =E707 -> 0.008 | M7: =E708 -> 0.064 | N7: =N6 -> 0.04 | O7: =O5 -> 6.4e-05 | P7: =P6 -> 0.2 | Q7: =E808 -> 0.027 | R7: =R6+dxxx -> 0.25 | S7: 0 | T7: 4 | U7: 0.125 | V7: =IF(nnn>T7,2,IF(nnn=T7,1,0)) -> 2 | W7: 0.25 | X7: =2*E7 -> 1.6e-05
C8: 6 | D8: =D7+Sheet2!B$5 -> 0.025 | E8: 1.5625e-05 | G8: 4 | H8: 0.8 | K8: =K7+dx -> 0.4 | L8: =E707 -> 0.008 | M8: =M7 -> 0.064 | N8: =N7+dxx -> 0.08 | O8: =E406 -> 0.000512 | P8: =P7+dxxxx -> 0.4 | Q8: =E808 -> 0.027 | R8: =R7 -> 0.25 | S8: =E657 -> 0.015625 | T8: 5 | U8: 0.244140625 | V8: =IF(nnn>T7,4,0) -> 4 | W8: 0.9765625 | X8: =4*E8 -> 6.25e-05
C9: 7 | D9: =D8+Sheet2!B$5 -> 0.03 | E9: 2.7e-05 | G9: 5 | H9: 1 | K9: =K8 -> 0.4 | L9: 0 | M9: 0 | N9: =N8 -> 0.08 | O9: 0 | P9: =P8 -> 0.4 | Q9: 0 | R9: =IF(R8<xMax-dxxx,R8+dxxx,xMax) -> 0.375 | S9: =0 -> 0 | T9: 6 | U9: 0.421875 | V9: =IF(nnn>T9,2,IF(nnn=T9,1,0)) -> 2 | W9: =U9*V9 -> 0.84375 | X9: =2*E9 -> 5.4e-05
C10: 8 | D10: =D9+Sheet2!B$5 -> 0.035 | E10: 4.2875e-05 | G10: 6 | H10: 1.2 | J10: 2 | K10: =IF(n>C406,K9,xMax) -> 0.4 | L10: =IF(n>=$B708,$E708,0) -> 0.064 | M10: =IF(n>=$B708,$E709,0) -> 0.216 | N10: =IF(N9<fmax-dxx,N9,xMax) -> 0.08 | O10: =IF(N8<fmax-dxx,O8,0) -> 0.000512 | P10: =IF(P9<fmax-dxxxx,P9,xMax) -> 0.4 | Q10: =E809 -> 0.125 | R10: =R9 -> 0.375 | S10: =IF(R9=xMax,0,$E658) -> 0.052734375 | T10: 7 | U10: 0.669921875 | V10: =IF(nnn>T9,4,0) -> 4 | W10: 2.6796875 | X10: =4*E10 -> 0.0001715 | Y10: TRAP =
C11: 9 | D11: =D10+Sheet2!B$5 -> 0.04 | E11: 6.4e-05 | G11: 7 | H11: 1.4 | K11: =IF(n>C406,K10+dx,xMax) -> 0.6 | L11: =IF(n>=$B708,$E708,0) -> 0.064 | M11: =M10 -> 0.216 | N11: =IF(N10<xMax-dxx,N10+dxx,xMax) -> 0.12 | O11: =IF(AND(N11<=xMax,N10<xMax),$E407,0) -> 0.001728 | P11: =IF(P10<xMax-dxxxx,P10+dxxxx,xMax) -> 0.6 | Q11: =Q10 -> 0.125 | R11: =IF(R10<xMax-dxxx,R10+dxxx,xMax) -> 0.5 | S11: =IF(R9<xMax-dxxx/2,S9,0) -> 0 | T11: 8 | U11: 1 | V11: =IF(nnn>T11,2,IF(nnn=T11,1,0)) -> 2 | W11: 2 | X11: 0.000128 | Y11: =SUM(O3:O186)*dxx/2 -> 4.0016
C12: 10 | D12: =D11+Sheet2!B$5 -> 0.045 | E12: 9.1125e-05 | G12: 8 | H12: 1.6 | K12: =K11 -> 0.6 | L12: 0 | M12: 0 | N12: =N11 -> 0.12 | O12: =0 -> 0 | P12: =P11 -> 0.6 | Q12: 0 | R12: =R11 -> 0.5 | S12: =IF(R9=xMax,flast,$E659) -> 0.125 | T12: 9 | U12: 1.423828125 | V12: =IF(nnn>T11,4,0) -> 4 | W12: 5.6953125 | X12: 0.0003645
C13: 11 | D13: =D12+Sheet2!B$5 -> 0.05 | E13: 0.000125 | G13: 9 | H13: 1.8 | J13: 3 | K13: =IF(n>$C407,$K12,xMax) -> 0.6 | L13: =IF(n>=$B709,$E709,0) -> 0.216 | M13: =IF(n>=$B709,$E710,0) -> 0.512 | N13: =IF(N12<fmax-dxx,N12,xMax) -> 0.12 | O13: =IF(N11<xMax,O11,0) -> 0.001728 | P13: =IF(P12<fmax-dxxxx,P12,xMax) -> 0.6 | Q13: =IF(nnnn>=$B810,$E810,0) -> 0.343 | R13: =IF(R12<xMax-dxxx,R12+dxxx,xMax) -> 0.625 | S13: =0 -> 0 | T13: 10 | U13: 1.953125 | V13: =IF(nnn>T13,2,IF(nnn=T13,1,0)) -> 2 | W13: 3.90625 | X13: 0.00025
C14: 12 | D14: =D13+Sheet2!B$5 -> 0.055 | E14: 0.000166375 | G14: 10 | H14: 2 | K14: =IF(n>$C407,$K13+dx,xMax) -> 0.8 | L14: =L13 -> 0.216 | M14: =M13 -> 0.512 | N14: =IF(N13<xMax-dxx,N13+dxx,xMax) -> 0.16 | O14: =IF(AND(N14<=xMax,N13<xMax),$E408,0) -> 0.004096 | P14: =IF(P13<xMax-dxxxx,P13+dxxxx,xMax) -> 0.8 | Q14: =Q13 -> 0.343 | R14: =R13 -> 0.625 | S14: =IF(R13=xMax,0,$E660) -> 0.244140625 | T14: 11 | U14: 2.599609375 | V14: =IF(nnn>T13,4,0) -> 4 | W14: 10.3984375 | X14: 0.0006655
C15: 13 | D15: =D14+Sheet2!B$5 -> 0.06 | E15: 0.000216 | G15: 11 | H15: 2.2 | K15: =$K14 -> 0.8 | L15: 0 | M15: 0 | N15: =N14 -> 0.16 | O15: =0 -> 0 | P15: =P14 -> 0.8 | Q15: 0 | R15: =IF(R14<xMax-dxxx,R14+dxxx,xMax) -> 0.75 | S15: =IF(R13<xMax-dxxx/2,S13,0) -> 0 | T15: 12 | U15: 3.375 | V15: =IF(nnn>T15,2,IF(nnn=T15,1,0)) -> 2 | W15: 6.75 | X15: 0.000432 | Y15: SIMP =
C16: 14 | D16: =D15+Sheet2!B$5 -> 0.065 | E16: 0.000274625 | G16: 12 | H16: 2.4 | J16: 4 | K16: =IF(n>$C408,$K15,xMax) -> 0.8 | L16: =IF(n>=$B710,$E710,0) -> 0.512 | M16: =IF(n>=$B710,$E711,0) -> 1 | N16: =IF(N15<fmax-dxx,N15,xMax) -> 0.16 | O16: =IF(N14<xMax,O14,0) -> 0.004096 | P16: =IF(P15<fmax-dxxxx,P15,xMax) -> 0.8 | Q16: =IF(nnnn>=$B811,$E811,0) -> 0.729 | R16: =R15 -> 0.75 | S16: =IF(R13=xMax,flast,$E661) -> 0.421875 | T16: 13 | U16: 4.291015625 | V16: =IF(nnn>T15,4,0) -> 4 | W16: 17.1640625 | X16: 0.0010985 | Y16: =SUM(W2:W34)*dxxx/3 -> 4
C17: 15 | D17: =D16+Sheet2!B$5 -> 0.07 | E17: 0.000343 | G17: 13 | H17: 2.6 | K17: =IF(n>$C408,$K16+dx,xMax) -> 1 | L17: =L16 -> 0.512 | M17: =M16 -> 1 | N17: =IF(N16<xMax-dxx,N16+dxx,xMax) -> 0.2 | O17: =IF(AND(N17<=xMax,N16<xMax),$E409,0) -> 0.008 | P17: =IF(P16<xMax-dxxxx,P16+dxxxx,xMax) -> 1 | Q17: =Q16 -> 0.729 | R17: =IF(R16<xMax-dxxx,R16+dxxx,xMax) -> 0.875 | S17: =0 -> 0 | T17: 14 | U17: 5.359375 | V17: =IF(nnn>T17,2,IF(nnn=T17,1,0)) -> 2 | W17: 10.71875 | X17: 0.000686
C18: 16 | D18: =D17+Sheet2!B$5 -> 0.075 | E18: 0.000421875 | G18: 14 | H18: 2.8 | K18: =$K17 -> 1 | L18: 0 | M18: =0 -> 0 | N18: =N17 -> 0.2 | O18: =0 -> 0 | P18: =P17 -> 1 | Q18: 0 | R18: =R17 -> 0.875 | S18: =IF(R17=xMax,0,$E662) -> 0.669921875 | T18: 15 | U18: 6.591796875 | V18: =IF(nnn>T17,4,0) -> 4 | W18: 26.3671875 | X18: 0.0016875 | Y18: MID =
C19: 17 | D19: =D18+Sheet2!B$5 -> 0.08 | E19: 0.000512 | G19: 15 | H19: 3 | J19: 5 | K19: =IF(n>$C409,$K18,xMax) -> 1 | L19: =IF(n>=$B711,$E711,0) -> 1 | M19: =IF(n>=$B711,$E712,0) -> 1.728 | N19: =IF(N18<fmax-dxx,N18,xMax) -> 0.2 | O19: =IF(N17<xMax,O17,0) -> 0.008 | P19: =IF(P18<fmax-dxxxx,P18,xMax) -> 1 | Q19: =IF(nnnn>=$B812,$E812,0) -> 1.331 | R19: =IF(R18<xMax-dxxx,R18+dxxx,xMax) -> 1 | S19: =IF(R17<xMax-dxxx/2,S17,0) -> 0 | T19: 16 | U19: 8 | V19: =IF(nnn>T19,2,IF(nnn=T19,1,0)) -> 1 | W19: 8 | X19: 0.001024 | Y19: =SUM(Q3:Q156)/2*dxxxx -> 3.98
C20: 18 | D20: =D19+Sheet2!B$5 -> 0.085 | E20: 0.000614125 | G20: 16 | H20: 3.2 | K20: =IF(n>$C409,$K19+dx,xMax) -> 1.2 | L20: =L19 -> 1 | M20: =M19 -> 1.728 | N20: =IF(N19<xMax-dxx,N19+dxx,xMax) -> 0.24 | O20: =IF(AND(N20<=xMax,N19<xMax),$E410,0) -> 0.013824 | P20: =IF(P19<xMax-dxxxx,P19+dxxxx,xMax) -> 1.2 | Q20: =Q19 -> 1.331 | R20: =R19 -> 1 | S20: =IF(R17=xMax,flast,$E663) -> 1 | T20: 17 | U20: 9.595703125 | V20: =IF(nnn>T19,4,0) -> 0 | W20: 0 | X20: 0.0024565
C21: 19 | D21: =D20+Sheet2!B$5 -> 0.09 | E21: 0.000729 | G21: 17 | H21: 3.4 | K21: =$K20 -> 1.2 | L21: 0 | M21: =0 -> 0 | N21: =N20 -> 0.24 | O21: =0 -> 0 | P21: =P20 -> 1.2 | Q21: 0 | R21: =IF(R20<xMax-dxxx,R20+dxxx,xMax) -> 1.125 | S21: =0 -> 0 | T21: 18 | U21: 11.390625 | V21: =IF(nnn>T21,2,IF(nnn=T21,1,0)) -> 0 | W21: 0 | X21: 0.001458
A22: n = | B22: =Riemann!C20 -> 10 | C22: 20 | D22: =D21+Sheet2!B$5 -> 0.095 | E22: 0.000857375 | G22: 18 | H22: 3.6 | J22: 6 | K22: =IF(n>$C410,$K21,xMax) -> 1.2 | L22: =IF(n>=$B712,$E712,0) -> 1.728 | M22: =IF(n>=$B712,$E713,0) -> 2.744 | N22: =IF(N21<fmax-dxx,N21,xMax) -> 0.24 | O22: =IF(N20<xMax,O20,0) -> 0.013824 | P22: =IF(P21<fmax-dxxxx,P21,xMax) -> 1.2 | Q22: =IF(nnnn>=$B813,$E813,0) -> 2.197 | R22: =R21 -> 1.125 | S22: =IF(R21=xMax,0,$E664) -> 1.423828125 | T22: 19 | U22: 13.39648438 | V22: =IF(nnn>T21,4,0) -> 0 | W22: 0 | X22: 0.0034295
A23: dx = | B23: =(xMax-xMin)/n -> 0.2 | C23: 21 | D23: =D22+Sheet2!B$5 -> 0.1 | E23: 0.001 | G23: 19 | H23: 3.8 | K23: =IF(n>$C410,$K22+dx,xMax) -> 1.4 | L23: =L22 -> 1.728 | M23: =M22 -> 2.744 | N23: =IF(N22<xMax-dxx,N22+dxx,xMax) -> 0.28 | O23: =IF(AND(N23<=xMax,N22<xMax),$E411,0) -> 0.021952 | P23: =IF(P22<xMax-dxxxx,P22+dxxxx,xMax) -> 1.4 | Q23: =Q22 -> 2.197 | R23: =IF(R22<xMax-dxxx,R22+dxxx,xMax) -> 1.25 | S23: =IF(R21<xMax-dxxx/2,S21,0) -> 0 | T23: 20 | U23: 15.625 | V23: =IF(nnn>T23,2,IF(nnn=T23,1,0)) -> 0 | W23: 0 | X23: 0.002
C24: 22 | D24: =D23+Sheet2!B$5 -> 0.105 | E24: 0.001157625 | G24: 20 | H24: 4 | K24: =$K23 -> 1.4 | L24: 0 | M24: =0 -> 0 | N24: =N23 -> 0.28 | O24: =0 -> 0 | P24: =P23 -> 1.4 | Q24: 0 | R24: =R23 -> 1.25 | S24: =IF(R21=xMax,flast,$E665) -> 1.953125 | T24: 21 | U24: 18.08789062 | V24: =IF(nnn>T23,4,0) -> 0 | W24: 0 | X24: 0.0046305
A25: nn= | B25: =TrapRule!C22 -> 50 | C25: 23 | D25: =D24+Sheet2!B$5 -> 0.11 | E25: 0.001331 | G25: 21 | H25: 4.2 | J25: 7 | K25: =IF(n>$C411,$K24,xMax) -> 1.4 | L25: =IF(n>=$B713,$E713,0) -> 2.744 | M25: =IF(n>=$B713,$E714,0) -> 4.096 | N25: =IF(N24<fmax-dxx,N24,xMax) -> 0.28 | O25: =IF(N23<xMax,O23,0) -> 0.021952 | P25: =IF(P24<fmax-dxxxx,P24,xMax) -> 1.4 | Q25: =IF(nnnn>=$B814,$E814,0) -> 3.375 | R25: =IF(R24<xMax-dxxx,R24+dxxx,xMax) -> 1.375 | S25: =0 -> 0 | T25: 22 | U25: 20.796875 | V25: =IF(nnn>T25,2,IF(nnn=T25,1,0)) -> 0 | W25: 0 | X25: 0.002662
A26: dxx= | B26: =(xMax-xMin)/nn -> 0.04 | C26: 24 | D26: =D25+Sheet2!B$5 -> 0.115 | E26: 0.001520875 | G26: 22 | H26: 4.4 | K26: =IF(n>$C411,$K25+dx,xMax) -> 1.6 | L26: =L25 -> 2.744 | M26: =M25 -> 4.096 | N26: =IF(N25<xMax-dxx,N25+dxx,xMax) -> 0.32 | O26: =IF(AND(N26<=xMax,N25<xMax),$E412,0) -> 0.032768 | P26: =IF(P25<xMax-dxxxx,P25+dxxxx,xMax) -> 1.6 | Q26: =Q25 -> 3.375 | R26: =R25 -> 1.375 | S26: =IF(R25=xMax,0,$E666) -> 2.599609375 | T26: 23 | U26: 23.76367188 | V26: =IF(nnn>T25,4,0) -> 0 | W26: 0 | X26: 0.0060835
C27: 25 | D27: =D26+Sheet2!B$5 -> 0.12 | E27: 0.001728 | G27: 23 | H27: 4.6 | K27: =$K26 -> 1.6 | L27: 0 | M27: =0 -> 0 | N27: =N26 -> 0.32 | O27: =0 -> 0 | P27: =P26 -> 1.6 | Q27: 0 | R27: =IF(R26<xMax-dxxx,R26+dxxx,xMax) -> 1.5 | S27: =IF(R25<xMax-dxxx/2,S25,0) -> 0 | T27: 24 | U27: 27 | V27: =IF(nnn>T27,2,IF(nnn=T27,1,0)) -> 0 | W27: 0 | X27: 0.003456
C28: 26 | D28: =D27+Sheet2!B$5 -> 0.125 | E28: 0.001953125 | G28: 24 | H28: 4.8 | J28: 8 | K28: =IF(n>$C412,$K27,xMax) -> 1.6 | L28: =IF(n>=$B714,$E714,0) -> 4.096 | M28: =IF(n>=$B714,$E715,0) -> 5.832 | N28: =IF(N27<fmax-dxx,N27,xMax) -> 0.32 | O28: =IF(N26<xMax,O26,0) -> 0.032768 | P28: =IF(P27<fmax-dxxxx,P27,xMax) -> 1.6 | Q28: =IF(nnnn>=$B815,$E815,0) -> 4.913 | R28: =R27 -> 1.5 | S28: =IF(R25=xMax,flast,$E667) -> 3.375 | T28: 25 | U28: 30.51757812 | V28: =IF(nnn>T27,4,0) -> 0 | W28: 0 | X28: 0.0078125
A29: nnn= | B29: =Simpson!C22 -> 16 | C29: 27 | D29: =D28+Sheet2!B$5 -> 0.13 | E29: 0.002197 | G29: 25 | H29: 5 | K29: =IF(n>$C412,$K28+dx,xMax) -> 1.8 | L29: =L28 -> 4.096 | M29: =M28 -> 5.832 | N29: =IF(N28<xMax-dxx,N28+dxx,xMax) -> 0.36 | O29: =IF(AND(N29<=xMax,N28<xMax),$E413,0) -> 0.046656 | P29: =IF(P28<xMax-dxxxx,P28+dxxxx,xMax) -> 1.8 | Q29: =Q28 -> 4.913 | R29: =IF(R28<xMax-dxxx,R28+dxxx,xMax) -> 1.625 | S29: =0 -> 0 | T29: 26 | U29: 34.328125 | V29: =IF(nnn>T29,2,IF(nnn=T29,1,0)) -> 0 | W29: 0 | X29: 0.004394
A30: dxxx= | B30: =(xMax-xMin)/nnn -> 0.125 | C30: 28 | D30: =D29+Sheet2!B$5 -> 0.135 | E30: 0.002460375 | G30: 26 | H30: 5.2 | K30: =$K29 -> 1.8 | L30: 0 | M30: =0 -> 0 | N30: =N29 -> 0.36 | O30: =0 -> 0 | P30: =P29 -> 1.8 | Q30: 0 | R30: =R29 -> 1.625 | S30: =IF(R29=xMax,0,$E668) -> 4.291015625 | T30: 27 | U30: 38.44335938 | V30: =IF(nnn>T29,4,0) -> 0 | W30: 0 | X30: 0.0098415
C31: 29 | D31: =D30+Sheet2!B$5 -> 0.14 | E31: 0.002744 | G31: 27 | H31: 5.4 | J31: 9 | K31: =IF(n>$C413,$K30,xMax) -> 1.8 | L31: =IF(n>=$B715,$E715,0) -> 5.832 | M31: =IF(n>=$B715,$E716,0) -> 8 | N31: =IF(N30<fmax-dxx,N30,xMax) -> 0.36 | O31: =IF(N29<xMax,O29,0) -> 0.046656 | P31: =IF(P30<fmax-dxxxx,P30,xMax) -> 1.8 | Q31: =IF(nnnn>=$B816,$E816,0) -> 6.859 | R31: =IF(R30<xMax-dxxx,R30+dxxx,xMax) -> 1.75 | S31: =IF(R29<xMax-dxxx/2,S29,0) -> 0 | T31: 28 | U31: 42.875 | V31: =IF(nnn>T31,2,IF(nnn=T31,1,0)) -> 0 | W31: 0 | X31: 0.005488
C32: 30 | D32: =D31+Sheet2!B$5 -> 0.145 | E32: 0.003048625 | G32: 28 | H32: 5.6 | K32: =IF(n>$C413,$K31+dx,xMax) -> 2 | L32: =L31 -> 5.832 | M32: =M31 -> 8 | N32: =IF(N31<xMax-dxx,N31+dxx,xMax) -> 0.4 | O32: =IF(AND(N32<=xMax,N31<xMax),$E414,0) -> 0.064 | P32: =IF(P31<xMax-dxxxx,P31+dxxxx,xMax) -> 2 | Q32: =Q31 -> 6.859 | R32: =R31 -> 1.75 | S32: =IF(R29=xMax,flast,$E669) -> 5.359375 | T32: 29 | U32: 47.63476562 | V32: =IF(nnn>T31,4,0) -> 0 | W32: 0 | X32: 0.0121945
A33: for MidPoint | C33: 31 | D33: =D32+Sheet2!B$5 -> 0.15 | E33: 0.003375 | G33: 29 | H33: 5.8 | K33: =$K32 -> 2 | L33: 0 | M33: =0 -> 0 | N33: =N32 -> 0.4 | O33: =0 -> 0 | P33: =P32 -> 2 | Q33: 0 | R33: =IF(R32<xMax-dxxx,R32+dxxx,xMax) -> 1.875 | S33: =0 -> 0 | T33: 30 | U33: 52.734375 | V33: =IF(nnn>T33,2,IF(nnn=T33,1,0)) -> 0 | W33: 0 | X33: 0.00675
A34: nnnn= | B34: =nnnn -> 10 | C34: 32 | D34: =D33+Sheet2!B$5 -> 0.155 | E34: 0.003723875 | G34: 30 | H34: 6 | J34: 10 | K34: =IF(n>$C414,$K33,xMax) -> 2 | L34: =IF(n>=$B716,$E716,0) -> 0 | M34: =IF(n>=$B716,$E717,0) -> 0 | N34: =IF(N33<fmax-dxx,N33,xMax) -> 0.4 | O34: =IF(N32<xMax,O32,0) -> 0.064 | P34: =IF(P33<fmax-dxxxx,P33,xMax) -> 2 | Q34: =IF(nnnn>=$B817,$E817,0) -> 0 | R34: =R33 -> 1.875 | S34: =IF(R33=xMax,0,$E670) -> 6.591796875 | W34: 0 | X34: 0.0148955
A35: dxxxx= | B35: =(xMax-xMin)/nnnn -> 0.2 | C35: 33 | D35: =D34+Sheet2!B$5 -> 0.16 | E35: 0.004096 | G35: 31 | H35: 6.2 | K35: =IF(n>$C414,$K34+dx,xMax) -> 2 | L35: =L34 -> 0 | M35: =M34 -> 0 | N35: =IF(N34<xMax-dxx,N34+dxx,xMax) -> 0.44 | O35: =IF(AND(N35<=xMax,N34<xMax),$E415,0) -> 0.085184 | P35: =IF(P34<xMax-dxxxx,P34+dxxxx,xMax) -> 2 | Q35: =Q34 -> 0 | R35: =IF(R34<xMax-dxxx,R34+dxxx,xMax) -> 2 | S35: =IF(R33<xMax-dxxx/2,S33,0) -> 0 | W35: 0 | X35: 0.008192
C36: 34 | D36: =D35+Sheet2!B$5 -> 0.165 | E36: 0.004492125 | G36: 32 | H36: 6.4 | K36: =$K35 -> 2 | L36: 0 | M36: =0 -> 0 | N36: =N35 -> 0.44 | O36: =0 -> 0 | P36: =P35 -> 2 | Q36: 0 | R36: =R35 -> 2 | S36: =IF(R33=xMax,flast,$E671) -> 8 | U36: Parabolas | X36: 0.0179685
C37: 35 | D37: =D36+Sheet2!B$5 -> 0.17 | E37: 0.004913 | G37: 33 | H37: 6.6 | J37: 11 | K37: =IF(n>$C415,$K36,xMax) -> 2 | L37: =IF(n>=$B717,$E717,0) -> 0 | M37: =IF(n>=$B717,$E718,0) -> 0 | N37: =IF(N36<fmax-dxx,N36,xMax) -> 0.44 | O37: =IF(N35<xMax,O35,0) -> 0.085184 | P37: =IF(P36<fmax-dxxxx,P36,xMax) -> 2 | Q37: =IF(nnnn>=$B818,$E818,0) -> 0 | R37: =IF(R36<xMax-dxxx,R36+dxxx,xMax) -> 2 | S37: =0 -> 0 | T37: =xMin -> 0 | U37: =U3 -> 0 | X37: 0.009826
C38: 36 | D38: =D37+Sheet2!B$5 -> 0.175 | E38: 0.005359375 | G38: 34 | H38: 6.8 | K38: =IF(n>$C415,$K37+dx,xMax) -> 2 | L38: =L37 -> 0 | M38: =M37 -> 0 | N38: =IF(N37<xMax-dxx,N37+dxx,xMax) -> 0.48 | O38: =IF(AND(N38<=xMax,N37<xMax),$E416,0) -> 0.110592 | P38: =IF(P37<xMax-dxxxx,P37+dxxxx,xMax) -> 2 | Q38: =Q37 -> 0 | R38: =R37 -> 2 | S38: =IF(R37=xMax,0,$E672) -> 0 | T38: =T37+dxxx -> 0.125 | U38: =U4 -> 0.001953125 | X38: 0.0214375
C39: 37 | D39: =D38+Sheet2!B$5 -> 0.18 | E39: 0.005832 | G39: 35 | H39: 7 | K39: =$K38 -> 2 | L39: 0 | M39: =0 -> 0 | N39: =N38 -> 0.48 | O39: =0 -> 0 | P39: =P38 -> 2 | Q39: 0 | R39: =IF(R38<xMax-dxxx,R38+dxxx,xMax) -> 2 | S39: =IF(R37<xMax-dxxx/2,S37,0) -> 0 | T39: =T38+dxxx -> 0.25 | U39: =U5 -> 0.015625 | X39: 0.011664
C40: 38 | D40: =D39+Sheet2!B$5 -> 0.185 | E40: 0.006331625 | G40: 36 | H40: 7.2 | J40: 12 | K40: =IF(n>$C416,$K39,xMax) -> 2 | L40: =IF(n>=$B718,$E718,0) -> 0 | M40: =IF(n>=$B718,$E719,0) -> 0 | N40: =IF(N39<fmax-dxx,N39,xMax) -> 0.48 | O40: =IF(N38<xMax,O38,0) -> 0.110592 | P40: =IF(P39<fmax-dxxxx,P39,xMax) -> 2 | Q40: =IF(nnnn>=$B819,$E819,0) -> 0 | R40: =R39 -> 2 | S40: =IF(R37=xMax,flast,$E673) -> 8 | T40: =IF(T39=xMax,T$37,T39) -> 0.25 | U40: =IF(T$39=xMax,U$37,U5) -> 0.015625 | X40: 0.0253265
C41: 39 | D41: =D40+Sheet2!B$5 -> 0.19 | E41: 0.006859 | G41: 37 | H41: 7.4 | K41: =IF(n>$C416,$K40+dx,xMax) -> 2 | L41: =L40 -> 0 | M41: =M40 -> 0 | N41: =IF(N40<xMax-dxx,N40+dxx,xMax) -> 0.52 | O41: =IF(AND(N41<=xMax,N40<xMax),$E417,0) -> 0.140608 | P41: =IF(P40<xMax-dxxxx,P40+dxxxx,xMax) -> 2 | Q41: =Q40 -> 0 | R41: =IF(R40<xMax-dxxx,R40+dxxx,xMax) -> 2 | S41: =0 -> 0 | T41: =T40+dxxx -> 0.375 | U41: =IF(T$39=xMax,U$38,U6) -> 0.052734375 | X41: 0.013718
C42: 40 | D42: =D41+Sheet2!B$5 -> 0.195 | E42: 0.007414875 | G42: 38 | H42: 7.6 | K42: =$K41 -> 2 | L42: 0 | M42: =0 -> 0 | N42: =N41 -> 0.52 | O42: =0 -> 0 | P42: =P41 -> 2 | Q42: 0 | R42: =R41 -> 2 | S42: =IF(R41=xMax,0,$E674) -> 0 | T42: =T41+dxxx -> 0.5 | U42: =IF(T$39=xMax,U39,U7) -> 0.125 | X42: 0.0296595
C43: 41 | D43: =D42+Sheet2!B$5 -> 0.2 | E43: 0.008 | G43: 39 | H43: 7.8 | J43: 13 | K43: =IF(n>$C417,$K42,xMax) -> 2 | L43: =IF(n>=$B719,$E719,0) -> 0 | M43: =IF(n>=$B719,$E720,0) -> 0 | N43: =IF(N42<fmax-dxx,N42,xMax) -> 0.52 | O43: =IF(N41<xMax,O41,0) -> 0.140608 | P43: =IF(P42<fmax-dxxxx,P42,xMax) -> 2 | Q43: =IF(nnnn>=$B820,$E820,0) -> 0 | R43: =IF(R42<xMax-dxxx,R42+dxxx,xMax) -> 2 | S43: =IF(R41<xMax-dxxx/2,S41,0) -> 0 | T43: =IF(T42=xMax,T$37,T42) -> 0.5 | U43: =IF(T$42=xMax,U$37,U7) -> 0.125 | X43: 0.016
C44: 42 | D44: =D43+Sheet2!B$5 -> 0.205 | E44: 0.008615125 | G44: 40 | H44: 8 | K44: =IF(n>$C417,$K43+dx,xMax) -> 2 | L44: =L43 -> 0 | M44: =M43 -> 0 | N44: =IF(N43<xMax-dxx,N43+dxx,xMax) -> 0.56 | O44: =IF(AND(N44<=xMax,N43<xMax),$E418,0) -> 0.175616 | P44: =IF(P43<xMax-dxxxx,P43+dxxxx,xMax) -> 2 | Q44: =Q43 -> 0 | R44: =R43 -> 2 | S44: =IF(R41=xMax,flast,$E675) -> 8 | T44: =T43+dxxx -> 0.625 | U44: =IF(T$42=xMax,U$38,U8) -> 0.244140625 | X44: 0.0344605
C45: 43 | D45: =D44+Sheet2!B$5 -> 0.21 | E45: 0.009261 | G45: 41 | H45: 8.2 | K45: =$K44 -> 2 | L45: 0 | M45: =0 -> 0 | N45: =N44 -> 0.56 | O45: =0 -> 0 | P45: =P44 -> 2 | Q45: 0 | R45: =IF(R44<xMax-dxxx,R44+dxxx,xMax) -> 2 | S45: =0 -> 0 | T45: =T44+dxxx -> 0.75 | U45: =IF(T$42=xMax,U$39,U9) -> 0.421875 | X45: 0.018522
C46: 44 | D46: =D45+Sheet2!B$5 -> 0.215 | E46: 0.009938375 | G46: 42 | H46: 8.4 | J46: 14 | K46: =IF(n>$C418,$K45,xMax) -> 2 | L46: =IF(n>=$B720,$E720,0) -> 0 | M46: =IF(n>=$B720,$E721,0) -> 0 | N46: =IF(N45<fmax-dxx,N45,xMax) -> 0.56 | O46: =IF(N44<xMax,O44,0) -> 0.175616 | P46: =IF(P45<fmax-dxxxx,P45,xMax) -> 2 | Q46: =IF(nnnn>=$B821,$E821,0) -> 0 | R46: =R45 -> 2 | S46: =IF(R45=xMax,0,$E676) -> 0 | T46: =IF(OR(T45=xMin+2*dxxx,T45=xMax),T$37,T45) -> 0.75 | U46: =IF(OR(T$45=xMin+2*dxxx,T45=xMax),U$37,U9) -> 0.421875 | X46: 0.0397535
C47: 45 | D47: =D46+Sheet2!B$5 -> 0.22 | E47: 0.010648 | G47: 43 | H47: 8.6 | K47: =IF(n>$C418,$K46+dx,xMax) -> 2 | L47: =L46 -> 0 | M47: =M46 -> 0 | N47: =IF(N46<xMax-dxx,N46+dxx,xMax) -> 0.6 | O47: =IF(AND(N47<=xMax,N46<xMax),$E419,0) -> 0.216 | P47: =IF(P46<xMax-dxxxx,P46+dxxxx,xMax) -> 2 | Q47: =Q46 -> 0 | R47: =IF(R46<xMax-dxxx,R46+dxxx,xMax) -> 2 | S47: =IF(R45<xMax-dxxx/2,S45,0) -> 0 | T47: =T46+dxxx -> 0.875 | U47: =IF(OR(T$45=xMin+2*dxxx,T45=xMax),U$38,U10) -> 0.669921875 | X47: 0.021296
C48: 46 | D48: =D47+Sheet2!B$5 -> 0.225 | E48: 0.011390625 | G48: 44 | H48: 8.8 | K48: =$K47 -> 2 | L48: 0 | M48: =0 -> 0 | N48: =N47 -> 0.6 | O48: =0 -> 0 | P48: =P47 -> 2 | Q48: 0 | R48: =R47 -> 2 | S48: =IF(R45=xMax,flast,$E677) -> 8 | T48: =T47+dxxx -> 1 | U48: =IF(OR(T$45=xMin+2*dxxx,T45=xMax),U$39,U11) -> 1 | X48: 0.0455625
C49: 47 | D49: =D48+Sheet2!B$5 -> 0.23 | E49: 0.012167 | G49: 45 | H49: 9 | J49: 15 | K49: =IF(n>$C419,$K48,xMax) -> 2 | L49: =IF(n>=$B721,$E721,0) -> 0 | M49: =IF(n>=$B721,$E722,0) -> 0 | N49: =IF(N48<fmax-dxx,N48,xMax) -> 0.6 | O49: =IF(N47<xMax,O47,0) -> 0.216 | P49: =IF(P48<fmax-dxxxx,P48,xMax) -> 2 | Q49: =IF(nnnn>=$B822,$E822,0) -> 0 | R49: =IF(R48<xMax-dxxx,R48+dxxx,xMax) -> 2 | S49: =0 -> 0 | T49: =IF(OR(T48=xMin+2*dxxx,T48=xMax),T$37,T48) -> 1 | U49: =IF(OR(T$48=xMin+2*dxxx,T48=xMax),U$37,U11) -> 1 | X49: 0.024334
C50: 48 | D50: =D49+Sheet2!B$5 -> 0.235 | E50: 0.012977875 | G50: 46 | H50: 9.2 | K50: =IF(n>$C419,$K49+dx,xMax) -> 2 | L50: =L49 -> 0 | M50: =M49 -> 0 | N50: =IF(N49<xMax-dxx,N49+dxx,xMax) -> 0.64 | O50: =IF(AND(N50<=xMax,N49<xMax),$E420,0) -> 0.262144 | P50: =IF(P49<xMax-dxxxx,P49+dxxxx,xMax) -> 2 | Q50: =Q49 -> 0 | R50: =R49 -> 2 | S50: =IF(R49=xMax,0,$E678) -> 0 | T50: =T49+dxxx -> 1.125 | U50: =IF(OR(T$48=xMin+2*dxxx,T48=xMax),U$38,U12) -> 1.423828125 | X50: 0.0519115
C51: 49 | D51: =D50+Sheet2!B$5 -> 0.24 | E51: 0.013824 | G51: 47 | H51: 9.4 | K51: =$K50 -> 2 | L51: 0 | M51: =0 -> 0 | N51: =N50 -> 0.64 | O51: =0 -> 0 | P51: =P50 -> 2 | Q51: 0 | R51: =IF(R50<xMax-dxxx,R50+dxxx,xMax) -> 2 | S51: =IF(R49<xMax-dxxx/2,S49,0) -> 0 | T51: =T50+dxxx -> 1.25 | U51: =IF(OR(T$48=xMin+2*dxxx,T48=xMax),U$39,U13) -> 1.953125 | X51: 0.027648
C52: 50 | D52: =D51+Sheet2!B$5 -> 0.245 | E52: 0.014706125 | G52: 48 | H52: 9.6 | J52: 16 | K52: =IF(n>$C420,$K51,xMax) -> 2 | L52: =IF(n>=$B722,$E722,0) -> 0 | M52: =IF(n>=$B722,$E723,0) -> 0 | N52: =IF(N51<fmax-dxx,N51,xMax) -> 0.64 | O52: =IF(N50<xMax,O50,0) -> 0.262144 | P52: =IF(P51<fmax-dxxxx,P51,xMax) -> 2 | Q52: =IF(nnnn>=$B823,$E823,0) -> 0 | R52: =R51 -> 2 | S52: =IF(R49=xMax,flast,$E679) -> 8 | T52: =IF(OR(T51=xMin+2*dxxx,T51=xMax),T$37,T51) -> 1.25 | U52: =IF(OR(T$51=xMin+2*dxxx,T51=xMax),U$37,U13) -> 1.953125 | X52: 0.0588245
C53: 51 | D53: =D52+Sheet2!B$5 -> 0.25 | E53: 0.015625 | G53: 49 | H53: 9.8 | K53: =IF(n>$C420,$K52+dx,xMax) -> 2 | L53: =L52 -> 0 | M53: =M52 -> 0 | N53: =IF(N52<xMax-dxx,N52+dxx,xMax) -> 0.68 | O53: =IF(AND(N53<=xMax,N52<xMax),$E421,0) -> 0.314432 | P53: =IF(P52<xMax-dxxxx,P52+dxxxx,xMax) -> 2 | Q53: =Q52 -> 0 | R53: =IF(R52<xMax-dxxx,R52+dxxx,xMax) -> 2 | S53: =0 -> 0 | T53: =T52+dxxx -> 1.375 | U53: =IF(OR(T$51=xMin+2*dxxx,T51=xMax),U$38,U14) -> 2.599609375 | X53: 0.03125
C54: 52 | D54: =D53+Sheet2!B$5 -> 0.255 | E54: 0.016581375 | G54: 50 | H54: 10 | K54: =$K53 -> 2 | L54: 0 | M54: =0 -> 0 | N54: =N53 -> 0.68 | O54: =0 -> 0 | P54: =P53 -> 2 | Q54: 0 | R54: =R53 -> 2 | S54: =IF(R53=xMax,0,$E680) -> 0 | T54: =T53+dxxx -> 1.5 | U54: =IF(OR(T$51=xMin+2*dxxx,T51=xMax),U$39,U15) -> 3.375 | X54: 0.0663255
C55: 53 | D55: =D54+Sheet2!B$5 -> 0.26 | E55: 0.017576 | G55: 51 | H55: 10.2 | J55: 17 | K55: =IF(n>$C421,$K54,xMax) -> 2 | L55: =IF(n>=$B723,$E723,0) -> 0 | M55: =IF(n>=$B723,$E724,0) -> 0 | N55: =IF(N54<fmax-dxx,N54,xMax) -> 0.68 | O55: =IF(N53<xMax,O53,0) -> 0.314432 | P55: =IF(P54<fmax-dxxxx,P54,xMax) -> 2 | Q55: =IF(nnnn>=$B824,$E824,0) -> 0 | R55: =IF(R54<xMax-dxxx,R54+dxxx,xMax) -> 2 | S55: =IF(R53<xMax-dxxx/2,S53,0) -> 0 | T55: =IF(OR(T54=xMin+2*dxxx,T54=xMax),T$37,T54) -> 1.5 | U55: =IF(OR(T$54=xMin+2*dxxx,T54=xMax),U$37,U15) -> 3.375 | X55: 0.035152
C56: 54 | D56: =D55+Sheet2!B$5 -> 0.265 | E56: 0.018609625 | G56: 52 | H56: 10.4 | K56: =IF(n>$C421,$K55+dx,xMax) -> 2 | L56: =L55 -> 0 | M56: =M55 -> 0 | N56: =IF(N55<xMax-dxx,N55+dxx,xMax) -> 0.72 | O56: =IF(AND(N56<=xMax,N55<xMax),$E422,0) -> 0.373248 | P56: =IF(P55<xMax-dxxxx,P55+dxxxx,xMax) -> 2 | Q56: =Q55 -> 0 | R56: =R55 -> 2 | S56: =IF(R53=xMax,flast,$E681) -> 8 | T56: =T55+dxxx -> 1.625 | U56: =IF(OR(T$54=xMin+2*dxxx,T54=xMax),U$38,U16) -> 4.291015625 | X56: 0.0744385
C57: 55 | D57: =D56+Sheet2!B$5 -> 0.27 | E57: 0.019683 | G57: 53 | H57: 10.6 | K57: =$K56 -> 2 | L57: 0 | M57: =0 -> 0 | N57: =N56 -> 0.72 | O57: =0 -> 0 | P57: =P56 -> 2 | Q57: 0 | R57: =IF(R56<xMax-dxxx,R56+dxxx,xMax) -> 2 | S57: =0 -> 0 | T57: =T56+dxxx -> 1.75 | U57: =IF(OR(T$54=xMin+2*dxxx,T54=xMax),U$39,U17) -> 5.359375 | X57: 0.039366
C58: 56 | D58: =D57+Sheet2!B$5 -> 0.275 | E58: 0.020796875 | G58: 54 | H58: 10.8 | J58: 18 | K58: =IF(n>$C422,$K57,xMax) -> 2 | L58: =IF(n>=$B724,$E724,0) -> 0 | M58: =IF(n>=$B724,$E725,0) -> 0 | N58: =IF(N57<fmax-dxx,N57,xMax) -> 0.72 | O58: =IF(N56<xMax,O56,0) -> 0.373248 | P58: =IF(P57<fmax-dxxxx,P57,xMax) -> 2 | Q58: =IF(nnnn>=$B825,$E825,0) -> 0 | R58: =R57 -> 2 | S58: =IF(R57=xMax,0,$E682) -> 0 | T58: =IF(OR(T57=xMin+2*dxxx,T57=xMax),T$37,T57) -> 1.75 | U58: =IF(OR(T$57=xMin+2*dxxx,T57=xMax),U$37,U17) -> 5.359375 | X58: 0.0831875
C59: 57 | D59: =D58+Sheet2!B$5 -> 0.28 | E59: 0.021952 | G59: 55 | H59: 11 | K59: =IF(n>$C422,$K58+dx,xMax) -> 2 | L59: =L58 -> 0 | M59: =M58 -> 0 | N59: =IF(N58<xMax-dxx,N58+dxx,xMax) -> 0.76 | O59: =IF(AND(N59<=xMax,N58<xMax),$E423,0) -> 0.438976 | P59: =IF(P58<xMax-dxxxx,P58+dxxxx,xMax) -> 2 | Q59: =Q58 -> 0 | R59: =IF(R58<xMax-dxxx,R58+dxxx,xMax) -> 2 | S59: =IF(R57<xMax-dxxx/2,S57,0) -> 0 | T59: =T58+dxxx -> 1.875 | U59: =IF(OR(T$57=xMin+2*dxxx,T57=xMax),U$38,U18) -> 6.591796875 | X59: 0.043904
C60: 58 | D60: =D59+Sheet2!B$5 -> 0.285 | E60: 0.023149125 | G60: 56 | H60: 11.2 | K60: =$K59 -> 2 | L60: 0 | M60: =0 -> 0 | N60: =N59 -> 0.76 | O60: =0 -> 0 | P60: =P59 -> 2 | Q60: 0 | R60: =R59 -> 2 | S60: =IF(R57=xMax,flast,$E683) -> 8 | T60: =T59+dxxx -> 2 | U60: =IF(OR(T$57=xMin+2*dxxx,T57=xMax),U$39,U19) -> 8 | X60: 0.0925965
C61: 59 | D61: =D60+Sheet2!B$5 -> 0.29 | E61: 0.024389 | G61: 57 | H61: 11.4 | J61: 19 | K61: =IF(n>$C423,$K60,xMax) -> 2 | L61: =IF(n>=$B725,$E725,0) -> 0 | M61: =IF(n>=$B725,$E726,0) -> 0 | N61: =IF(N60<fmax-dxx,N60,xMax) -> 0.76 | O61: =IF(N59<xMax,O59,0) -> 0.438976 | P61: =IF(P60<fmax-dxxxx,P60,xMax) -> 2 | Q61: =IF(nnnn>=$B826,$E826,0) -> 0 | R61: =IF(R60<xMax-dxxx,R60+dxxx,xMax) -> 2 | S61: =0 -> 0 | T61: =IF(OR(T60=xMin+2*dxxx,T60=xMax),T$37,T60) -> 0 | U61: =IF(OR(T$60=xMin+2*dxxx,T60=xMax),U$37,U19) -> 0 | X61: 0.048778
C62: 60 | D62: =D61+Sheet2!B$5 -> 0.295 | E62: 0.025672375 | G62: 58 | H62: 11.6 | K62: =IF(n>$C423,$K61+dx,xMax) -> 2 | L62: =L61 -> 0 | M62: =M61 -> 0 | N62: =IF(N61<xMax-dxx,N61+dxx,xMax) -> 0.8 | O62: =IF(AND(N62<=xMax,N61<xMax),$E424,0) -> 0.512 | P62: =IF(P61<xMax-dxxxx,P61+dxxxx,xMax) -> 2 | Q62: =Q61 -> 0 | R62: =R61 -> 2 | S62: =IF(R61=xMax,0,$E684) -> 0 | T62: =T61+dxxx -> 0.125 | U62: =IF(OR(T$60=xMin+2*dxxx,T60=xMax),U$38,U20) -> 0.001953125 | X62: 0.1026895
C63: 61 | D63: =D62+Sheet2!B$5 -> 0.3 | E63: 0.027 | G63: 59 | H63: 11.8 | K63: =$K62 -> 2 | L63: 0 | M63: =0 -> 0 | N63: =N62 -> 0.8 | O63: =0 -> 0 | P63: =P62 -> 2 | Q63: 0 | R63: =IF(R62<xMax-dxxx,R62+dxxx,xMax) -> 2 | S63: =IF(R61<xMax-dxxx/2,S61,0) -> 0 | T63: =T62+dxxx -> 0.25 | U63: =IF(OR(T$60=xMin+2*dxxx,T60=xMax),U$39,U21) -> 0.015625 | X63: 0.054
C64: 62 | D64: =D63+Sheet2!B$5 -> 0.305 | E64: 0.028372625 | G64: 60 | H64: 12 | J64: 20 | K64: =IF(n>$C424,$K63,xMax) -> 2 | L64: =IF(n>=$B726,$E726,0) -> 0 | M64: =IF(n>=$B726,$E727,0) -> 0 | N64: =IF(N63<fmax-dxx,N63,xMax) -> 0.8 | O64: =IF(N62<xMax,O62,0) -> 0.512 | P64: =IF(P63<fmax-dxxxx,P63,xMax) -> 2 | Q64: =IF(nnnn>=$B827,$E827,0) -> 0 | R64: =R63 -> 2 | S64: =IF(R61=xMax,flast,$E685) -> 8 | T64: =IF(OR(T63=xMin+2*dxxx,T63=xMax),T$37,T63) -> 0 | U64: =IF(OR(T$63=xMin+2*dxxx,T63=xMax),U$37,U21) -> 0 | X64: 0.1134905
C65: 63 | D65: =D64+Sheet2!B$5 -> 0.31 | E65: 0.029791 | G65: 61 | H65: 12.2 | K65: =IF(n>$C424,$K64+dx,xMax) -> 2 | L65: =L64 -> 0 | M65: =M64 -> 0 | N65: =IF(N64<xMax-dxx,N64+dxx,xMax) -> 0.84 | O65: =IF(AND(N65<=xMax,N64<xMax),$E425,0) -> 0.592704 | P65: =IF(P64<xMax-dxxxx,P64+dxxxx,xMax) -> 2 | Q65: =Q64 -> 0 | T65: =T64+dxxx -> 0.125 | U65: =IF(OR(T$63=xMin+2*dxxx,T63=xMax),U$38,U22) -> 0.001953125 | X65: 0.059582
C66: 64 | D66: =D65+Sheet2!B$5 -> 0.315 | E66: 0.031255875 | G66: 62 | H66: 12.4 | K66: =$K65 -> 2 | L66: 0 | M66: =0 -> 0 | N66: =N65 -> 0.84 | O66: =0 -> 0 | P66: =P65 -> 2 | Q66: 0 | T66: =T65+dxxx -> 0.25 | U66: =IF(OR(T$63=xMin+2*dxxx,T63=xMax),U$39,U23) -> 0.015625 | X66: 0.1250235
C67: 65 | D67: =D66+Sheet2!B$5 -> 0.32 | E67: =x^3 -> 0.032768 | G67: 63 | H67: 12.6 | J67: 21 | K67: =IF(n>$C425,$K66,xMax) -> 2 | L67: =IF(n>=$B727,$E727,0) -> 0 | M67: =IF(n>=$B727,$E728,0) -> 0 | N67: =IF(N66<fmax-dxx,N66,xMax) -> 0.84 | O67: =IF(N65<xMax,O65,0) -> 0.592704 | P67: =IF(P66<fmax-dxxxx,P66,xMax) -> 2 | Q67: =IF(nnnn>=$B828,$E828,0) -> 0 | T67: =IF(OR(T66=xMin+2*dxxx,T66=xMax),T$37,T66) -> 0 | U67: =IF(OR(T$66=xMin+2*dxxx,T66=xMax),U$37,U23) -> 0 | X67: 0.065536
C68: 66 | D68: =D67+Sheet2!B$5 -> 0.325 | E68: 0.034328125 | G68: 64 | H68: 12.8 | K68: =IF(n>$C425,$K67+dx,xMax) -> 2 | L68: =L67 -> 0 | M68: =M67 -> 0 | N68: =IF(N67<xMax-dxx,N67+dxx,xMax) -> 0.88 | O68: =IF(AND(N68<=xMax,N67<xMax),$E426,0) -> 0.681472 | P68: =IF(P67<xMax-dxxxx,P67+dxxxx,xMax) -> 2 | Q68: =Q67 -> 0 | T68: =T67+dxxx -> 0.125 | U68: =IF(OR(T$66=xMin+2*dxxx,T66=xMax),U$38,U24) -> 0.001953125 | X68: 0.1373125
C69: 67 | D69: =D68+Sheet2!B$5 -> 0.33 | E69: 0.035937 | G69: 65 | H69: =H68+dx -> 13 | K69: =$K68 -> 2 | L69: 0 | M69: =0 -> 0 | N69: =N68 -> 0.88 | O69: =0 -> 0 | P69: =P68 -> 2 | Q69: 0 | T69: =T68+dxxx -> 0.25 | U69: =IF(OR(T$66=xMin+2*dxxx,T66=xMax),U$39,U25) -> 0.015625 | X69: 0.071874
C70: 68 | D70: =D69+Sheet2!B$5 -> 0.335 | E70: 0.037595375 | G70: 66 | H70: 13.2 | J70: 22 | K70: =IF(n>$C426,$K69,xMax) -> 2 | L70: =IF(n>=$B728,$E728,0) -> 0 | M70: =IF(n>=$B728,$E729,0) -> 0 | N70: =IF(N69<fmax-dxx,N69,xMax) -> 0.88 | O70: =IF(N68<xMax,O68,0) -> 0.681472 | P70: =IF(P69<fmax-dxxxx,P69,xMax) -> 2 | Q70: =IF(nnnn>=$B829,$E829,0) -> 0 | T70: =IF(OR(T69=xMin+2*dxxx,T69=xMax),T$37,T69) -> 0 | U70: =IF(OR(T$69=xMin+2*dxxx,T69=xMax),U$37,U25) -> 0 | X70: 0.1503815
C71: 69 | D71: =D70+Sheet2!B$5 -> 0.34 | E71: 0.039304 | G71: 67 | H71: 13.4 | K71: =IF(n>$C426,$K70+dx,xMax) -> 2 | L71: =L70 -> 0 | M71: =M70 -> 0 | N71: =IF(N70<xMax-dxx,N70+dxx,xMax) -> 0.92 | O71: =IF(AND(N71<=xMax,N70<xMax),$E427,0) -> 0.778688 | P71: =IF(P70<xMax-dxxxx,P70+dxxxx,xMax) -> 2 | Q71: =Q70 -> 0 | T71: =T70+dxxx -> 0.125 | U71: =IF(OR(T$69=xMin+2*dxxx,T69=xMax),U$38,U26) -> 0.001953125 | X71: 0.078608
C72: 70 | D72: =D71+Sheet2!B$5 -> 0.345 | E72: 0.041063625 | G72: 68 | H72: 13.6 | K72: =$K71 -> 2 | L72: 0 | M72: =0 -> 0 | N72: =N71 -> 0.92 | O72: =0 -> 0 | P72: =P71 -> 2 | Q72: 0 | T72: =T71+dxxx -> 0.25 | U72: =IF(OR(T$69=xMin+2*dxxx,T69=xMax),U$39,U27) -> 0.015625 | X72: 0.1642545
C73: 71 | D73: =D72+Sheet2!B$5 -> 0.35 | E73: 0.042875 | G73: 69 | H73: 13.8 | J73: 23 | K73: =IF(n>$C427,$K72,xMax) -> 2 | L73: =IF(n>=$B729,$E729,0) -> 0 | M73: =IF(n>=$B729,$E730,0) -> 0 | N73: =IF(N72<fmax-dxx,N72,xMax) -> 0.92 | O73: =IF(N71<xMax,O71,0) -> 0.778688 | P73: =IF(P72<fmax-dxxxx,P72,xMax) -> 2 | Q73: =IF(nnnn>=$B830,$E830,0) -> 0 | T73: =IF(OR(T72=xMin+2*dxxx,T72=xMax),T$37,T72) -> 0 | U73: =IF(OR(T$72=xMin+2*dxxx,T72=xMax),U$37,U27) -> 0 | X73: =2*E73 -> 0.08575
C74: 72 | D74: =D73+Sheet2!B$5 -> 0.355 | E74: 0.044738875 | G74: 70 | H74: 14 | K74: =IF(n>$C427,$K73+dx,xMax) -> 2 | L74: =L73 -> 0 | M74: =M73 -> 0 | N74: =IF(N73<xMax-dxx,N73+dxx,xMax) -> 0.96 | O74: =IF(AND(N74<=xMax,N73<xMax),$E428,0) -> 0.884736 | P74: =IF(P73<xMax-dxxxx,P73+dxxxx,xMax) -> 2 | Q74: =Q73 -> 0 | T74: =T73+dxxx -> 0.125 | U74: =IF(OR(T$72=xMin+2*dxxx,T72=xMax),U$38,U28) -> 0.001953125 | X74: =4*E74 -> 0.1789555
C75: 73 | D75: =D74+Sheet2!B$5 -> 0.36 | E75: 0.046656 | G75: 71 | H75: 14.2 | K75: =$K74 -> 2 | L75: 0 | M75: =0 -> 0 | N75: =N74 -> 0.96 | O75: =0 -> 0 | P75: =P74 -> 2 | Q75: 0 | T75: =T74+dxxx -> 0.25 | U75: =IF(OR(T$72=xMin+2*dxxx,T72=xMax),U$39,U29) -> 0.015625 | X75: 0.093312
C76: 74 | D76: =D75+Sheet2!B$5 -> 0.365 | E76: 0.048627125 | G76: 72 | H76: 14.4 | J76: 24 | K76: =IF(n>$C428,$K75,xMax) -> 2 | L76: =IF(n>=$B730,$E730,0) -> 0 | M76: =IF(n>=$B730,$E731,0) -> 0 | N76: =IF(N75<fmax-dxx,N75,xMax) -> 0.96 | O76: =IF(N74<xMax,O74,0) -> 0.884736 | P76: =IF(P75<fmax-dxxxx,P75,xMax) -> 2 | Q76: =IF(nnnn>=$B831,$E831,0) -> 0 | T76: =IF(OR(T75=xMin+2*dxxx,T75=xMax),T$37,T75) -> 0 | U76: =IF(OR(T$75=xMin+2*dxxx,T75=xMax),U$37,U29) -> 0 | X76: 0.1945085
C77: 75 | D77: =D76+Sheet2!B$5 -> 0.37 | E77: 0.050653 | G77: 73 | H77: 14.6 | K77: =IF(n>$C428,$K76+dx,xMax) -> 2 | L77: =L76 -> 0 | M77: =M76 -> 0 | N77: =IF(N76<xMax-dxx,N76+dxx,xMax) -> 1 | O77: =IF(AND(N77<=xMax,N76<xMax),$E429,0) -> 1 | P77: =IF(P76<xMax-dxxxx,P76+dxxxx,xMax) -> 2 | Q77: =Q76 -> 0 | T77: =T76+dxxx -> 0.125 | U77: =IF(OR(T$75=xMin+2*dxxx,T75=xMax),U$38,U30) -> 0.001953125 | X77: 0.101306
C78: 76 | D78: =D77+Sheet2!B$5 -> 0.375 | E78: 0.052734375 | G78: 74 | H78: 14.8 | K78: =$K77 -> 2 | L78: 0 | M78: =0 -> 0 | N78: =N77 -> 1 | O78: =0 -> 0 | P78: =P77 -> 2 | Q78: 0 | T78: =T77+dxxx -> 0.25 | U78: =IF(OR(T$75=xMin+2*dxxx,T75=xMax),U$39,U31) -> 0.015625 | X78: 0.2109375
C79: 77 | D79: =D78+Sheet2!B$5 -> 0.38 | E79: 0.054872 | G79: 75 | H79: 15 | J79: 25 | K79: =IF(n>$C429,$K78,xMax) -> 2 | L79: =IF(n>=$B731,$E731,0) -> 0 | M79: =IF(n>=$B731,$E732,0) -> 0 | N79: =IF(N78<fmax-dxx,N78,xMax) -> 1 | O79: =IF(N77<xMax,O77,0) -> 1 | P79: =IF(P78<fmax-dxxxx,P78,xMax) -> 2 | Q79: =IF(nnnn>=$B832,$E832,0) -> 0 | T79: =IF(OR(T78=xMin+2*dxxx,T78=xMax),T$37,T78) -> 0 | U79: =IF(OR(T$78=xMin+2*dxxx,T78=xMax),U$37,U31) -> 0 | X79: 0.109744
C80: 78 | D80: =D79+Sheet2!B$5 -> 0.385 | E80: 0.057066625 | G80: 76 | H80: 15.2 | K80: =IF(n>$C429,$K79+dx,xMax) -> 2 | L80: =L79 -> 0 | M80: =M79 -> 0 | N80: =IF(N79<xMax-dxx,N79+dxx,xMax) -> 1.04 | O80: =IF(AND(N80<=xMax,N79<xMax),$E430,0) -> 1.124864 | P80: =IF(P79<xMax-dxxxx,P79+dxxxx,xMax) -> 2 | Q80: =Q79 -> 0 | T80: =T79+dxxx -> 0.125 | U80: =IF(OR(T$78=xMin+2*dxxx,T78=xMax),U$38,U32) -> 0.001953125 | X80: 0.2282665
C81: 79 | D81: =D80+Sheet2!B$5 -> 0.39 | E81: 0.059319 | G81: 77 | H81: 15.4 | K81: =$K80 -> 2 | L81: 0 | M81: =0 -> 0 | N81: =N80 -> 1.04 | O81: =0 -> 0 | P81: =P80 -> 2 | Q81: 0 | T81: =T80+dxxx -> 0.25 | U81: =IF(OR(T$78=xMin+2*dxxx,T78=xMax),U$39,U33) -> 0.015625 | X81: 0.118638
C82: 80 | D82: =D81+Sheet2!B$5 -> 0.395 | E82: 0.061629875 | G82: 78 | H82: 15.6 | J82: 26 | K82: =IF(n>$C430,$K81,xMax) -> 2 | L82: =IF(n>=$B732,$E732,0) -> 0 | M82: =IF(n>=$B732,$E733,0) -> 0 | N82: =IF(N81<fmax-dxx,N81,xMax) -> 1.04 | O82: =IF(N80<xMax,O80,0) -> 1.124864 | P82: =IF(P81<fmax-dxxxx,P81,xMax) -> 2 | Q82: =IF(nnnn>=$B833,$E833,0) -> 0 | X82: 0.2465195
C83: 81 | D83: =D82+Sheet2!B$5 -> 0.4 | E83: 0.064 | G83: 79 | H83: 15.8 | K83: =IF(n>$C430,$K82+dx,xMax) -> 2 | L83: =L82 -> 0 | M83: =M82 -> 0 | N83: =IF(N82<xMax-dxx,N82+dxx,xMax) -> 1.08 | O83: =IF(AND(N83<=xMax,N82<xMax),$E431,0) -> 1.259712 | P83: =IF(P82<xMax-dxxxx,P82+dxxxx,xMax) -> 2 | Q83: =Q82 -> 0 | X83: 0.128
C84: 82 | D84: =D83+Sheet2!B$5 -> 0.405 | E84: 0.066430125 | G84: 80 | H84: 16 | K84: =$K83 -> 2 | L84: 0 | M84: =0 -> 0 | N84: =N83 -> 1.08 | O84: =0 -> 0 | P84: =P83 -> 2 | Q84: 0 | X84: 0.2657205
C85: 83 | D85: =D84+Sheet2!B$5 -> 0.41 | E85: 0.068921 | G85: 81 | H85: 16.2 | J85: 27 | K85: =IF(n>$C431,$K84,xMax) -> 2 | L85: =IF(n>=$B733,$E733,0) -> 0 | M85: =IF(n>=$B733,$E734,0) -> 0 | N85: =IF(N84<fmax-dxx,N84,xMax) -> 1.08 | O85: =IF(N83<xMax,O83,0) -> 1.259712 | P85: =IF(P84<fmax-dxxxx,P84,xMax) -> 2 | Q85: =IF(nnnn>=$B834,$E834,0) -> 0 | X85: 0.137842
C86: 84 | D86: =D85+Sheet2!B$5 -> 0.415 | E86: 0.071473375 | G86: 82 | H86: 16.4 | K86: =IF(n>$C431,$K85+dx,xMax) -> 2 | L86: =L85 -> 0 | M86: =M85 -> 0 | N86: =IF(N85<xMax-dxx,N85+dxx,xMax) -> 1.12 | O86: =IF(AND(N86<=xMax,N85<xMax),$E432,0) -> 1.404928 | P86: =IF(P85<xMax-dxxxx,P85+dxxxx,xMax) -> 2 | Q86: =Q85 -> 0 | X86: 0.2858935
C87: 85 | D87: =D86+Sheet2!B$5 -> 0.42 | E87: 0.074088 | G87: 83 | H87: 16.6 | K87: =$K86 -> 2 | L87: 0 | M87: =0 -> 0 | N87: =N86 -> 1.12 | O87: =0 -> 0 | P87: =P86 -> 2 | Q87: 0 | X87: 0.148176
C88: 86 | D88: =D87+Sheet2!B$5 -> 0.425 | E88: 0.076765625 | G88: 84 | H88: 16.8 | J88: 28 | K88: =IF(n>$C432,$K87,xMax) -> 2 | L88: =IF(n>=$B734,$E734,0) -> 0 | M88: =IF(n>=$B734,$E735,0) -> 0 | N88: =IF(N87<fmax-dxx,N87,xMax) -> 1.12 | O88: =IF(N86<xMax,O86,0) -> 1.404928 | P88: =IF(P87<fmax-dxxxx,P87,xMax) -> 2 | Q88: =IF(nnnn>=$B835,$E835,0) -> 0 | X88: 0.3070625
C89: 87 | D89: =D88+Sheet2!B$5 -> 0.43 | E89: 0.079507 | G89: 85 | H89: 17 | K89: =IF(n>$C432,$K88+dx,xMax) -> 2 | L89: =L88 -> 0 | M89: =M88 -> 0 | N89: =IF(N88<xMax-dxx,N88+dxx,xMax) -> 1.16 | O89: =IF(AND(N89<=xMax,N88<xMax),$E433,0) -> 1.560896 | P89: =IF(P88<xMax-dxxxx,P88+dxxxx,xMax) -> 2 | Q89: =Q88 -> 0 | X89: 0.159014
C90: 88 | D90: =D89+Sheet2!B$5 -> 0.435 | E90: 0.082312875 | G90: 86 | H90: 17.2 | K90: =$K89 -> 2 | L90: 0 | M90: =0 -> 0 | N90: =N89 -> 1.16 | O90: =0 -> 0 | P90: =P89 -> 2 | Q90: 0 | X90: 0.3292515
C91: 89 | D91: =D90+Sheet2!B$5 -> 0.44 | E91: 0.085184 | G91: 87 | H91: 17.4 | J91: 29 | K91: =IF(n>$C433,$K90,xMax) -> 2 | L91: =IF(n>=$B735,$E735,0) -> 0 | M91: =IF(n>=$B735,$E735,0) -> 0 | N91: =IF(N90<fmax-dxx,N90,xMax) -> 1.16 | O91: =IF(N89<xMax,O89,0) -> 1.560896 | P91: =IF(P90<fmax-dxxxx,P90,xMax) -> 2 | Q91: =IF(nnnn>=$B836,$E836,0) -> 0 | X91: 0.170368
C92: 90 | D92: =D91+Sheet2!B$5 -> 0.445 | E92: 0.088121125 | G92: 88 | H92: 17.6 | K92: =IF(n>$C433,$K91+dx,xMax) -> 2 | L92: =L91 -> 0 | M92: =M91 -> 0 | N92: =IF(N91<xMax-dxx,N91+dxx,xMax) -> 1.2 | O92: =IF(AND(N92<=xMax,N91<xMax),$E434,0) -> 1.728 | P92: =IF(P91<xMax-dxxxx,P91+dxxxx,xMax) -> 2 | Q92: =Q91 -> 0 | X92: 0.3524845
C93: 91 | D93: =D92+Sheet2!B$5 -> 0.45 | E93: 0.091125 | G93: 89 | H93: 17.8 | K93: =$K92 -> 2 | L93: 0 | M93: =0 -> 0 | N93: =N92 -> 1.2 | O93: =0 -> 0 | P93: =P92 -> 2 | Q93: 0 | X93: 0.18225
C94: 92 | D94: =D93+Sheet2!B$5 -> 0.455 | E94: 0.094196375 | G94: 90 | H94: 18 | J94: 30 | K94: =IF(n>$C434,$K93,xMax) -> 2 | L94: =IF(n>=$B736,$E736,0) -> 0 | M94: =IF(n>=$B736,$E737,0) -> 0 | N94: =IF(N93<fmax-dxx,N93,xMax) -> 1.2 | O94: =IF(N92<xMax,O92,0) -> 1.728 | P94: =IF(P93<fmax-dxxxx,P93,xMax) -> 2 | Q94: =IF(nnnn>=$B837,$E837,0) -> 0 | X94: 0.3767855
C95: 93 | D95: =D94+Sheet2!B$5 -> 0.46 | E95: 0.097336 | G95: 91 | H95: 18.2 | K95: =IF(n>$C434,$K94+dx,xMax) -> 2 | L95: =L94 -> 0 | M95: =M94 -> 0 | N95: =IF(N94<xMax-dxx,N94+dxx,xMax) -> 1.24 | O95: =IF(AND(N95<=xMax,N94<xMax),$E435,0) -> 1.906624 | P95: =IF(P94<xMax-dxxxx,P94+dxxxx,xMax) -> 2 | Q95: =Q94 -> 0 | X95: 0.194672
C96: 94 | D96: =D95+Sheet2!B$5 -> 0.465 | E96: 0.100544625 | G96: 92 | H96: 18.4 | K96: =$K95 -> 2 | L96: 0 | M96: =0 -> 0 | N96: =N95 -> 1.24 | O96: =0 -> 0 | P96: =P95 -> 2 | Q96: 0 | X96: 0.4021785
C97: 95 | D97: =D96+Sheet2!B$5 -> 0.47 | E97: 0.103823 | G97: 93 | H97: 18.6 | J97: 31 | K97: =IF(n>$C435,$K96,xMax) -> 2 | L97: =IF(n>=$B737,$E737,0) -> 0 | M97: =IF(n>=$B737,$E738,0) -> 0 | N97: =IF(N96<fmax-dxx,N96,xMax) -> 1.24 | O97: =IF(N95<xMax,O95,0) -> 1.906624 | P97: =IF(P96<fmax-dxxxx,P96,xMax) -> 2 | Q97: =IF(nnnn>=$B838,$E838,0) -> 0 | X97: 0.207646
C98: 96 | D98: =D97+Sheet2!B$5 -> 0.475 | E98: 0.107171875 | G98: 94 | H98: 18.8 | K98: =IF(n>$C435,$K97+dx,xMax) -> 2 | L98: =L97 -> 0 | M98: =M97 -> 0 | N98: =IF(N97<xMax-dxx,N97+dxx,xMax) -> 1.28 | O98: =IF(AND(N98<=xMax,N97<xMax),$E436,0) -> 2.097152 | P98: =IF(P97<xMax-dxxxx,P97+dxxxx,xMax) -> 2 | Q98: =Q97 -> 0 | X98: 0.4286875
C99: 97 | D99: =D98+Sheet2!B$5 -> 0.48 | E99: 0.110592 | G99: 95 | H99: 19 | K99: =$K98 -> 2 | L99: 0 | M99: =0 -> 0 | N99: =N98 -> 1.28 | O99: =0 -> 0 | P99: =P98 -> 2 | Q99: 0 | X99: 0.221184
C100: 98 | D100: =D99+Sheet2!B$5 -> 0.485 | E100: 0.114084125 | G100: 96 | H100: 19.2 | J100: 32 | K100: =IF(n>$C436,$K99,xMax) -> 2 | L100: =IF(n>=$B738,$E738,0) -> 0 | M100: =IF(n>=$B738,$E739,0) -> 0 | N100: =IF(N99<fmax-dxx,N99,xMax) -> 1.28 | O100: =IF(N98<xMax,O98,0) -> 2.097152 | P100: =IF(P99<fmax-dxxxx,P99,xMax) -> 2 | Q100: =IF(nnnn>=$B839,$E839,0) -> 0 | X100: 0.4563365
C101: 99 | D101: =D100+Sheet2!B$5 -> 0.49 | E101: 0.117649 | G101: 97 | H101: 19.4 | K101: =IF(n>$C436,$K100+dx,xMax) -> 2 | L101: =L100 -> 0 | M101: =M100 -> 0 | N101: =IF(N100<xMax-dxx,N100+dxx,xMax) -> 1.32 | O101: =IF(AND(N101<=xMax,N100<xMax),$E437,0) -> 2.299968 | P101: =IF(P100<xMax-dxxxx,P100+dxxxx,xMax) -> 2 | Q101: =Q100 -> 0 | X101: 0.235298
C102: 100 | D102: =D101+Sheet2!B$5 -> 0.495 | E102: 0.121287375 | G102: 98 | H102: 19.6 | K102: =$K101 -> 2 | L102: 0 | M102: =0 -> 0 | N102: =N101 -> 1.32 | O102: =0 -> 0 | P102: =P101 -> 2 | Q102: 0 | X102: 0.4851495
C103: 101 | D103: =D102+Sheet2!B$5 -> 0.5 | E103: 0.125 | G103: 99 | H103: 19.8 | J103: 33 | K103: =IF(n>$C437,$K102,xMax) -> 2 | L103: =IF(n>=$B739,$E739,0) -> 0 | M103: =IF(n>=$B739,$E740,0) -> 0 | N103: =IF(N102<fmax-dxx,N102,xMax) -> 1.32 | O103: =IF(N101<xMax,O101,0) -> 2.299968 | P103: =IF(P102<fmax-dxxxx,P102,xMax) -> 2 | Q103: =IF(nnnn>=$B840,$E840,0) -> 0 | X103: 0.25
C104: 102 | D104: =D103+Sheet2!B$5 -> 0.505 | E104: 0.128787625 | G104: 100 | H104: 20 | K104: =IF(n>$C437,$K103+dx,xMax) -> 2 | L104: =L103 -> 0 | M104: =M103 -> 0 | N104: =IF(N103<xMax-dxx,N103+dxx,xMax) -> 1.36 | O104: =IF(AND(N104<=xMax,N103<xMax),$E438,0) -> 2.515456 | P104: =IF(P103<xMax-dxxxx,P103+dxxxx,xMax) -> 2 | Q104: =Q103 -> 0 | X104: 0.5151505
C105: 103 | D105: =D104+Sheet2!B$5 -> 0.51 | E105: 0.132651 | G105: 101 | H105: 20.2 | K105: =$K104 -> 2 | L105: 0 | M105: =0 -> 0 | N105: =N104 -> 1.36 | O105: =0 -> 0 | P105: =P104 -> 2 | Q105: 0 | X105: 0.265302
C106: 104 | D106: =D105+Sheet2!B$5 -> 0.515 | E106: 0.136590875 | G106: 102 | H106: 20.4 | J106: 34 | K106: =IF(n>$C438,$K105,xMax) -> 2 | L106: =IF(n>=$B740,$E740,0) -> 0 | M106: =IF(n>=$B740,$E741,0) -> 0 | N106: =IF(N105<fmax-dxx,N105,xMax) -> 1.36 | O106: =IF(N104<xMax,O104,0) -> 2.515456 | P106: =IF(P105<fmax-dxxxx,P105,xMax) -> 2 | Q106: =IF(nnnn>=$B841,$E841,0) -> 0 | X106: 0.5463635
C107: 105 | D107: =D106+Sheet2!B$5 -> 0.52 | E107: 0.140608 | G107: 103 | H107: 20.6 | K107: =IF(n>$C438,$K106+dx,xMax) -> 2 | L107: =L106 -> 0 | M107: =M106 -> 0 | N107: =IF(N106<xMax-dxx,N106+dxx,xMax) -> 1.4 | O107: =IF(AND(N107<=xMax,N106<xMax),$E439,0) -> 2.744 | P107: =IF(P106<xMax-dxxxx,P106+dxxxx,xMax) -> 2 | Q107: =Q106 -> 0 | X107: 0.281216
C108: 106 | D108: =D107+Sheet2!B$5 -> 0.525 | E108: 0.144703125 | G108: 104 | H108: 20.8 | K108: =$K107 -> 2 | L108: 0 | M108: =0 -> 0 | N108: =N107 -> 1.4 | O108: =0 -> 0 | P108: =P107 -> 2 | Q108: 0 | X108: 0.5788125
C109: 107 | D109: =D108+Sheet2!B$5 -> 0.53 | E109: 0.148877 | G109: 105 | H109: 21 | J109: 35 | K109: =IF(n>$C439,$K108,xMax) -> 2 | L109: =IF(n>=$B741,$E741,0) -> 0 | M109: =IF(n>=$B741,$E742,0) -> 0 | N109: =IF(N108<fmax-dxx,N108,xMax) -> 1.4 | O109: =IF(N107<xMax,O107,0) -> 2.744 | P109: =IF(P108<fmax-dxxxx,P108,xMax) -> 2 | Q109: =IF(nnnn>=$B842,$E842,0) -> 0 | X109: 0.297754
C110: 108 | D110: =D109+Sheet2!B$5 -> 0.535 | E110: 0.153130375 | G110: 106 | H110: 21.2 | K110: =IF(n>$C439,$K109+dx,xMax) -> 2 | L110: =L109 -> 0 | M110: =M109 -> 0 | N110: =IF(N109<xMax-dxx,N109+dxx,xMax) -> 1.44 | O110: =IF(AND(N110<=xMax,N109<xMax),$E440,0) -> 2.985984 | P110: =IF(P109<xMax-dxxxx,P109+dxxxx,xMax) -> 2 | Q110: =Q109 -> 0 | X110: 0.6125215
C111: 109 | D111: =D110+Sheet2!B$5 -> 0.54 | E111: 0.157464 | G111: 107 | H111: 21.4 | K111: =$K110 -> 2 | L111: 0 | M111: =0 -> 0 | N111: =N110 -> 1.44 | O111: =0 -> 0 | P111: =P110 -> 2 | Q111: 0 | X111: 0.314928
C112: 110 | D112: =D111+Sheet2!B$5 -> 0.545 | E112: 0.161878625 | G112: 108 | H112: 21.6 | J112: 36 | K112: =IF(n>$C440,$K111,xMax) -> 2 | L112: =IF(n>=$B742,$E742,0) -> 0 | M112: =IF(n>=$B742,$E743,0) -> 0 | N112: =IF(N111<fmax-dxx,N111,xMax) -> 1.44 | O112: =IF(N110<xMax,O110,0) -> 2.985984 | P112: =IF(P111<fmax-dxxxx,P111,xMax) -> 2 | Q112: =IF(nnnn>=$B843,$E843,0) -> 0 | X112: 0.6475145
C113: 111 | D113: =D112+Sheet2!B$5 -> 0.55 | E113: 0.166375 | G113: 109 | H113: 21.8 | K113: =IF(n>$C440,$K112+dx,xMax) -> 2 | L113: =L112 -> 0 | M113: =M112 -> 0 | N113: =IF(N112<xMax-dxx,N112+dxx,xMax) -> 1.48 | O113: =IF(AND(N113<=xMax,N112<xMax),$E441,0) -> 3.241792 | P113: =IF(P112<xMax-dxxxx,P112+dxxxx,xMax) -> 2 | Q113: =Q112 -> 0 | X113: 0.33275
C114: 112 | D114: =D113+Sheet2!B$5 -> 0.555 | E114: 0.170953875 | G114: 110 | H114: 22 | K114: =$K113 -> 2 | L114: 0 | M114: =0 -> 0 | N114: =N113 -> 1.48 | O114: =0 -> 0 | P114: =P113 -> 2 | Q114: 0 | X114: 0.6838155
C115: 113 | D115: =D114+Sheet2!B$5 -> 0.56 | E115: 0.175616 | G115: 111 | H115: 22.2 | J115: 37 | K115: =IF(n>$C441,$K114,xMax) -> 2 | L115: =IF(n>=$B743,$E743,0) -> 0 | M115: =IF(n>=$B743,$E744,0) -> 0 | N115: =IF(N114<fmax-dxx,N114,xMax) -> 1.48 | O115: =IF(N113<xMax,O113,0) -> 3.241792 | P115: =IF(P114<fmax-dxxxx,P114,xMax) -> 2 | Q115: =IF(nnnn>=$B844,$E844,0) -> 0 | X115: 0.351232
C116: 114 | D116: =D115+Sheet2!B$5 -> 0.565 | E116: 0.180362125 | G116: 112 | H116: 22.4 | K116: =IF(n>$C441,$K115+dx,xMax) -> 2 | L116: =L115 -> 0 | M116: =M115 -> 0 | N116: =IF(N115<xMax-dxx,N115+dxx,xMax) -> 1.52 | O116: =IF(AND(N116<=xMax,N115<xMax),$E442,0) -> 3.511808 | P116: =IF(P115<xMax-dxxxx,P115+dxxxx,xMax) -> 2 | Q116: =Q115 -> 0 | X116: 0.7214485
C117: 115 | D117: =D116+Sheet2!B$5 -> 0.57 | E117: 0.185193 | G117: 113 | H117: 22.6 | K117: =$K116 -> 2 | L117: 0 | M117: =0 -> 0 | N117: =N116 -> 1.52 | O117: =0 -> 0 | P117: =P116 -> 2 | Q117: 0 | X117: 0.370386
C118: 116 | D118: =D117+Sheet2!B$5 -> 0.575 | E118: 0.190109375 | G118: 114 | H118: 22.8 | J118: 38 | K118: =IF(n>$C442,$K117,xMax) -> 2 | L118: =IF(n>=$B744,$E744,0) -> 0 | M118: =IF(n>=$B744,$E745,0) -> 0 | N118: =IF(N117<fmax-dxx,N117,xMax) -> 1.52 | O118: =IF(N116<xMax,O116,0) -> 3.511808 | P118: =IF(P117<fmax-dxxxx,P117,xMax) -> 2 | Q118: =IF(nnnn>=$B845,$E845,0) -> 0 | X118: 0.7604375
C119: 117 | D119: =D118+Sheet2!B$5 -> 0.58 | E119: 0.195112 | G119: 115 | H119: 23 | K119: =IF(n>$C442,$K118+dx,xMax) -> 2 | L119: =L118 -> 0 | M119: =M118 -> 0 | N119: =IF(N118<xMax-dxx,N118+dxx,xMax) -> 1.56 | O119: =IF(AND(N119<=xMax,N118<xMax),$E443,0) -> 3.796416 | P119: =IF(P118<xMax-dxxxx,P118+dxxxx,xMax) -> 2 | Q119: =Q118 -> 0 | X119: 0.390224
C120: 118 | D120: =D119+Sheet2!B$5 -> 0.585 | E120: 0.200201625 | G120: 116 | H120: 23.2 | K120: =$K119 -> 2 | L120: 0 | M120: =0 -> 0 | N120: =N119 -> 1.56 | O120: =0 -> 0 | P120: =P119 -> 2 | Q120: 0 | X120: 0.8008065
C121: 119 | D121: =D120+Sheet2!B$5 -> 0.59 | E121: 0.205379 | G121: 117 | H121: 23.4 | J121: 39 | K121: =IF(n>$C443,$K120,xMax) -> 2 | L121: =IF(n>=$B745,$E745,0) -> 0 | M121: =IF(n>=$B745,$E746,0) -> 0 | N121: =IF(N120<fmax-dxx,N120,xMax) -> 1.56 | O121: =IF(N119<xMax,O119,0) -> 3.796416 | P121: =IF(P120<fmax-dxxxx,P120,xMax) -> 2 | Q121: =IF(nnnn>=$B846,$E846,0) -> 0 | X121: 0.410758
C122: 120 | D122: =D121+Sheet2!B$5 -> 0.595 | E122: 0.210644875 | G122: 118 | H122: 23.6 | K122: =IF(n>$C443,$K121+dx,xMax) -> 2 | L122: =L121 -> 0 | M122: =M121 -> 0 | N122: =IF(N121<xMax-dxx,N121+dxx,xMax) -> 1.6 | O122: =IF(AND(N122<=xMax,N121<xMax),$E444,0) -> 4.096 | P122: =IF(P121<xMax-dxxxx,P121+dxxxx,xMax) -> 2 | Q122: =Q121 -> 0 | X122: 0.8425795
C123: 121 | D123: =D122+Sheet2!B$5 -> 0.6 | E123: 0.216 | G123: 119 | H123: 23.8 | K123: =$K122 -> 2 | L123: 0 | M123: =0 -> 0 | N123: =N122 -> 1.6 | O123: =0 -> 0 | P123: =P122 -> 2 | Q123: 0 | X123: 0.432
C124: 122 | D124: =D123+Sheet2!B$5 -> 0.605 | E124: 0.221445125 | G124: 120 | H124: 24 | J124: 40 | K124: =IF(n>$C444,$K123,xMax) -> 2 | L124: =IF(n>=$B746,$E746,0) -> 0 | M124: =IF(n>=$B744,$E747,0) -> 0 | N124: =IF(N123<fmax-dxx,N123,xMax) -> 1.6 | O124: =IF(N122<xMax,O122,0) -> 4.096 | P124: =IF(P123<fmax-dxxxx,P123,xMax) -> 2 | Q124: =IF(nnnn>=$B847,$E847,0) -> 0 | X124: 0.8857805
C125: 123 | D125: =D124+Sheet2!B$5 -> 0.61 | E125: 0.226981 | G125: 121 | H125: 24.2 | K125: =IF(n>$C444,$K124+dx,xMax) -> 2 | L125: =L124 -> 0 | M125: =M124 -> 0 | N125: =IF(N124<xMax-dxx,N124+dxx,xMax) -> 1.64 | O125: =IF(AND(N125<=xMax,N124<xMax),$E445,0) -> 4.410944 | P125: =IF(P124<xMax-dxxxx,P124+dxxxx,xMax) -> 2 | Q125: =Q124 -> 0 | X125: 0.453962
C126: 124 | D126: =D125+Sheet2!B$5 -> 0.615 | E126: 0.232608375 | G126: 122 | H126: 24.4 | K126: =$K125 -> 2 | L126: 0 | M126: =0 -> 0 | N126: =N125 -> 1.64 | O126: =0 -> 0 | P126: =P125 -> 2 | Q126: 0 | X126: 0.9304335
C127: 125 | D127: =D126+Sheet2!B$5 -> 0.62 | E127: 0.238328 | G127: 123 | H127: 24.6 | J127: 41 | K127: =IF(n>$C445,$K126,xMax) -> 2 | L127: =IF(n>=$B747,$E747,0) -> 0 | M127: =IF(n>=$B747,$E748,0) -> 0 | N127: =IF(N126<fmax-dxx,N126,xMax) -> 1.64 | O127: =IF(N125<xMax,O125,0) -> 4.410944 | P127: =IF(P126<fmax-dxxxx,P126,xMax) -> 2 | Q127: =IF(nnnn>=$B848,$E848,0) -> 0 | X127: 0.476656
C128: 126 | D128: =D127+Sheet2!B$5 -> 0.625 | E128: 0.244140625 | G128: 124 | H128: 24.8 | K128: =IF(n>$C445,$K127+dx,xMax) -> 2 | L128: =L127 -> 0 | M128: =M127 -> 0 | N128: =IF(N127<xMax-dxx,N127+dxx,xMax) -> 1.68 | O128: =IF(AND(N128<=xMax,N127<xMax),$E446,0) -> 4.741632 | P128: =IF(P127<xMax-dxxxx,P127+dxxxx,xMax) -> 2 | Q128: =Q127 -> 0 | X128: 0.9765625
C129: 127 | D129: =D128+Sheet2!B$5 -> 0.63 | E129: 0.250047 | G129: 125 | H129: 25 | K129: =$K128 -> 2 | L129: 0 | M129: =0 -> 0 | N129: =N128 -> 1.68 | O129: =0 -> 0 | P129: =P128 -> 2 | Q129: 0 | X129: 0.500094
C130: 128 | D130: =D129+Sheet2!B$5 -> 0.635 | E130: 0.256047875 | G130: 126 | H130: 25.2 | J130: 42 | K130: =IF(n>$C446,$K129,xMax) -> 2 | L130: =IF(n>=$B748,$E748,0) -> 0 | M130: =IF(n>=$B748,$E749,0) -> 0 | N130: =IF(N129<fmax-dxx,N129,xMax) -> 1.68 | O130: =IF(N128<xMax,O128,0) -> 4.741632 | P130: =IF(P129<fmax-dxxxx,P129,xMax) -> 2 | Q130: =IF(nnnn>=$B849,$E849,0) -> 0 | X130: 1.0241915
C131: 129 | D131: =D130+Sheet2!B$5 -> 0.64 | E131: =x^3 -> 0.262144 | G131: 127 | H131: 25.4 | K131: =IF(n>$C446,$K130+dx,xMax) -> 2 | L131: =L130 -> 0 | M131: =M130 -> 0 | N131: =IF(N130<xMax-dxx,N130+dxx,xMax) -> 1.72 | O131: =IF(AND(N131<=xMax,N130<xMax),$E447,0) -> 5.088448 | P131: =IF(P130<xMax-dxxxx,P130+dxxxx,xMax) -> 2 | Q131: =Q130 -> 0 | X131: 0.524288
C132: 130 | D132: =D131+Sheet2!B$5 -> 0.645 | E132: 0.268336125 | G132: 128 | H132: 25.6 | K132: =$K131 -> 2 | L132: 0 | M132: =0 -> 0 | N132: =N131 -> 1.72 | O132: =0 -> 0 | P132: =P131 -> 2 | Q132: 0 | X132: 1.0733445
C133: 131 | D133: =D132+Sheet2!B$5 -> 0.65 | E133: 0.274625 | G133: 129 | H133: =H132+dx -> 25.8 | J133: 43 | K133: =IF(n>$C447,$K132,xMax) -> 2 | L133: =IF(n>=$B749,$E749,0) -> 0 | M133: =IF(n>=$B749,$E750,0) -> 0 | N133: =IF(N132<fmax-dxx,N132,xMax) -> 1.72 | O133: =IF(N131<xMax,O131,0) -> 5.088448 | P133: =IF(P132<fmax-dxxxx,P132,xMax) -> 2 | Q133: =IF(nnnn>=$B850,$E850,0) -> 0 | X133: 0.54925
C134: 132 | D134: =D133+Sheet2!B$5 -> 0.655 | E134: 0.281011375 | G134: 130 | H134: 26 | K134: =IF(n>$C447,$K133+dx,xMax) -> 2 | L134: =L133 -> 0 | M134: =M133 -> 0 | N134: =IF(N133<xMax-dxx,N133+dxx,xMax) -> 1.76 | O134: =IF(AND(N134<=xMax,N133<xMax),$E448,0) -> 5.451776 | P134: =IF(P133<xMax-dxxxx,P133+dxxxx,xMax) -> 2 | Q134: =Q133 -> 0 | X134: 1.1240455
C135: 133 | D135: =D134+Sheet2!B$5 -> 0.66 | E135: 0.287496 | G135: 131 | H135: 26.2 | K135: =$K134 -> 2 | L135: 0 | M135: =0 -> 0 | N135: =N134 -> 1.76 | O135: =0 -> 0 | P135: =P134 -> 2 | Q135: 0 | X135: 0.574992
C136: 134 | D136: =D135+Sheet2!B$5 -> 0.665 | E136: 0.294079625 | G136: 132 | H136: 26.4 | J136: 44 | K136: =IF(n>$C448,$K135,xMax) -> 2 | L136: =IF(n>=$B750,$E750,0) -> 0 | M136: =IF(n>=$B750,$E751,0) -> 0 | N136: =IF(N135<fmax-dxx,N135,xMax) -> 1.76 | O136: =IF(N134<xMax,O134,0) -> 5.451776 | P136: =IF(P135<fmax-dxxxx,P135,xMax) -> 2 | Q136: =IF(nnnn>=$B851,$E851,0) -> 0 | X136: 1.1763185
C137: 135 | D137: =D136+Sheet2!B$5 -> 0.67 | E137: 0.300763 | G137: 133 | H137: 26.6 | K137: =IF(n>$C448,$K136+dx,xMax) -> 2 | L137: =L136 -> 0 | M137: =M136 -> 0 | N137: =IF(N136<xMax-dxx,N136+dxx,xMax) -> 1.8 | O137: =IF(AND(N137<=xMax,N136<xMax),$E449,0) -> 5.832 | P137: =IF(P136<xMax-dxxxx,P136+dxxxx,xMax) -> 2 | Q137: =Q136 -> 0 | X137: =2*E137 -> 0.601526
C138: 136 | D138: =D137+Sheet2!B$5 -> 0.675 | E138: 0.307546875 | G138: 134 | H138: 26.8 | K138: =$K137 -> 2 | L138: 0 | M138: =0 -> 0 | N138: =N137 -> 1.8 | O138: =0 -> 0 | P138: =P137 -> 2 | Q138: 0 | X138: =4*E138 -> 1.2301875
C139: 137 | D139: =D138+Sheet2!B$5 -> 0.68 | E139: 0.314432 | G139: 135 | H139: 27 | J139: 45 | K139: =IF(n>$C449,$K138,xMax) -> 2 | L139: =IF(n>=$B751,$E751,0) -> 0 | M139: =IF(n>=$B751,$E752,0) -> 0 | N139: =IF(N138<fmax-dxx,N138,xMax) -> 1.8 | O139: =IF(N137<xMax,O137,0) -> 5.832 | P139: =IF(P138<fmax-dxxxx,P138,xMax) -> 2 | Q139: =IF(nnnn>=$B852,$E852,0) -> 0 | X139: 0.628864
C140: 138 | D140: =D139+Sheet2!B$5 -> 0.685 | E140: 0.321419125 | G140: 136 | H140: 27.2 | K140: =IF(n>$C449,$K139+dx,xMax) -> 2 | L140: =L139 -> 0 | M140: =M139 -> 0 | N140: =IF(N139<xMax-dxx,N139+dxx,xMax) -> 1.84 | O140: =IF(AND(N140<=xMax,N139<xMax),$E450,0) -> 6.229504 | P140: =IF(P139<xMax-dxxxx,P139+dxxxx,xMax) -> 2 | Q140: =Q139 -> 0 | X140: 1.2856765
C141: 139 | D141: =D140+Sheet2!B$5 -> 0.69 | E141: 0.328509 | G141: 137 | H141: 27.4 | K141: =$K140 -> 2 | L141: 0 | M141: =0 -> 0 | N141: =N140 -> 1.84 | O141: =0 -> 0 | P141: =P140 -> 2 | Q141: 0 | X141: 0.657018
C142: 140 | D142: =D141+Sheet2!B$5 -> 0.695 | E142: 0.335702375 | G142: 138 | H142: 27.6 | J142: 46 | K142: =IF(n>$C450,$K141,xMax) -> 2 | L142: =IF(n>=$B752,$E752,0) -> 0 | M142: =IF(n>=$B752,$E753,0) -> 0 | N142: =IF(N141<fmax-dxx,N141,xMax) -> 1.84 | O142: =IF(N140<xMax,O140,0) -> 6.229504 | P142: =IF(P141<fmax-dxxxx,P141,xMax) -> 2 | Q142: =IF(nnnn>=$B853,$E853,0) -> 0 | X142: 1.3428095
C143: 141 | D143: =D142+Sheet2!B$5 -> 0.7 | E143: 0.343 | G143: 139 | H143: 27.8 | K143: =IF(n>$C450,$K142+dx,xMax) -> 2 | L143: =L142 -> 0 | M143: =M142 -> 0 | N143: =IF(N142<xMax-dxx,N142+dxx,xMax) -> 1.88 | O143: =IF(AND(N143<=xMax,N142<xMax),$E451,0) -> 6.644672 | P143: =IF(P142<xMax-dxxxx,P142+dxxxx,xMax) -> 2 | Q143: =Q142 -> 0 | X143: 0.686
C144: 142 | D144: =D143+Sheet2!B$5 -> 0.705 | E144: 0.350402625 | G144: 140 | H144: 28 | K144: =$K143 -> 2 | L144: 0 | M144: =0 -> 0 | N144: =N143 -> 1.88 | O144: =0 -> 0 | P144: =P143 -> 2 | Q144: 0 | X144: 1.4016105
C145: 143 | D145: =D144+Sheet2!B$5 -> 0.71 | E145: 0.357911 | G145: 141 | H145: 28.2 | J145: 47 | K145: =IF(n>$C451,$K144,xMax) -> 2 | L145: =IF(n>=$B753,$E753,0) -> 0 | M145: =IF(n>=$B753,$E754,0) -> 0 | N145: =IF(N144<fmax-dxx,N144,xMax) -> 1.88 | O145: =IF(N143<xMax,O143,0) -> 6.644672 | P145: =IF(P144<fmax-dxxxx,P144,xMax) -> 2 | Q145: =IF(nnnn>=$B854,$E854,0) -> 0 | X145: 0.715822
C146: 144 | D146: =D145+Sheet2!B$5 -> 0.715 | E146: 0.365525875 | G146: 142 | H146: 28.4 | K146: =IF(n>$C451,$K145+dx,xMax) -> 2 | L146: =L145 -> 0 | M146: =M145 -> 0 | N146: =IF(N145<xMax-dxx,N145+dxx,xMax) -> 1.92 | O146: =IF(AND(N146<=xMax,N145<xMax),$E452,0) -> 7.077888 | P146: =IF(P145<xMax-dxxxx,P145+dxxxx,xMax) -> 2 | Q146: =Q145 -> 0 | X146: 1.4621035
C147: 145 | D147: =D146+Sheet2!B$5 -> 0.72 | E147: 0.373248 | G147: 143 | H147: 28.6 | K147: =$K146 -> 2 | L147: 0 | M147: =0 -> 0 | N147: =N146 -> 1.92 | O147: =0 -> 0 | P147: =P146 -> 2 | Q147: 0 | X147: 0.746496
C148: 146 | D148: =D147+Sheet2!B$5 -> 0.725 | E148: 0.381078125 | G148: 144 | H148: 28.8 | J148: 48 | K148: =IF(n>$C452,$K147,xMax) -> 2 | L148: =IF(n>=$B754,$E754,0) -> 0 | M148: =IF(n>=$B754,$E755,0) -> 0 | N148: =IF(N147<fmax-dxx,N147,xMax) -> 1.92 | O148: =IF(N146<xMax,O146,0) -> 7.077888 | P148: =IF(P147<fmax-dxxxx,P147,xMax) -> 2 | Q148: =IF(nnnn>=$B855,$E855,0) -> 0 | X148: 1.5243125
C149: 147 | D149: =D148+Sheet2!B$5 -> 0.73 | E149: 0.389017 | G149: 145 | H149: 29 | K149: =IF(n>$C452,$K148+dx,xMax) -> 2 | L149: =L148 -> 0 | M149: =M148 -> 0 | N149: =IF(N148<xMax-dxx,N148+dxx,xMax) -> 1.96 | O149: =IF(AND(N149<=xMax,N148<xMax),$E453,0) -> 7.529536 | P149: =IF(P148<xMax-dxxxx,P148+dxxxx,xMax) -> 2 | Q149: =Q148 -> 0 | X149: 0.778034
C150: 148 | D150: =D149+Sheet2!B$5 -> 0.735 | E150: 0.397065375 | G150: 146 | H150: 29.2 | K150: =$K149 -> 2 | L150: 0 | M150: =0 -> 0 | N150: =N149 -> 1.96 | O150: =0 -> 0 | P150: =P149 -> 2 | Q150: 0 | X150: 1.5882615
C151: 149 | D151: =D150+Sheet2!B$5 -> 0.74 | E151: 0.405224 | G151: 147 | H151: 29.4 | J151: 49 | K151: =IF(n>$C453,$K150,xMax) -> 2 | L151: =IF(n>=$B755,$E755,0) -> 0 | M151: =IF(n>=$B755,$E756,0) -> 0 | N151: =IF(N150<fmax-dxx,N150,xMax) -> 1.96 | O151: =IF(N149<xMax,O149,0) -> 7.529536 | P151: =IF(P150<fmax-dxxxx,P150,xMax) -> 2 | Q151: =IF(nnnn>=$B856,$E856,0) -> 0 | X151: 0.810448
C152: 150 | D152: =D151+Sheet2!B$5 -> 0.745 | E152: 0.413493625 | G152: 148 | H152: 29.6 | K152: =IF(n>$C453,$K151+dx,xMax) -> 2 | L152: =L151 -> 0 | M152: =M151 -> 0 | N152: =IF(N151<xMax-dxx,N151+dxx,xMax) -> 2 | O152: =IF(AND(N152<=xMax,N151<xMax),$E454,0) -> 8 | P152: =IF(P151<xMax-dxxxx,P151+dxxxx,xMax) -> 2 | Q152: =Q151 -> 0 | X152: 1.6539745
C153: 151 | D153: =D152+Sheet2!B$5 -> 0.75 | E153: 0.421875 | G153: 149 | H153: 29.8 | K153: =$K152 -> 2 | L153: 0 | M153: =0 -> 0 | N153: =N152 -> 2 | O153: =0 -> 0 | P153: =P152 -> 2 | Q153: 0 | X153: 0.84375
C154: 152 | D154: =D153+Sheet2!B$5 -> 0.755 | E154: 0.430368875 | G154: 150 | H154: 30 | J154: 50 | K154: =IF(n>$C454,$K153,xMax) -> 2 | L154: =IF(n>=$B756,$E756,0) -> 0 | M154: =IF(n>=$B756,$E757,0) -> 0 | N154: =IF(N153<fmax-dxx,N153,xMax) -> 2 | O154: =IF(N152<xMax,O152,0) -> 0 | P154: =IF(P153<fmax-dxxxx,P153,xMax) -> 2 | Q154: =IF(nnnn>=$B857,$E857,0) -> 0 | X154: 1.7214755
C155: 153 | D155: =D154+Sheet2!B$5 -> 0.76 | E155: 0.438976 | G155: 151 | H155: 30.2 | K155: =IF(n>$C454,$K154+dx,xMax) -> 2 | L155: =L154 -> 0 | M155: =M154 -> 0 | N155: =IF(N154<xMax-dxx,N154+dxx,xMax) -> 2 | O155: =IF(AND(N155<=xMax,N154<xMax),$E455,0) -> 0 | P155: =IF(P154<xMax-dxxxx,P154+dxxxx,xMax) -> 2 | Q155: =Q154 -> 0 | X155: 0.877952
C156: 154 | D156: =D155+Sheet2!B$5 -> 0.765 | E156: 0.447697125 | G156: 152 | H156: 30.4 | K156: =$K155 -> 2 | L156: 0 | M156: =0 -> 0 | N156: =N155 -> 2 | O156: =0 -> 0 | P156: =P155 -> 2 | Q156: 0 | X156: 1.7907885
C157: 155 | D157: =D156+Sheet2!B$5 -> 0.77 | E157: 0.456533 | G157: 153 | H157: 30.6 | J157: 51 | K157: =IF(n>$C455,$K156,xMax) -> 2 | L157: =IF(n>=$B757,$E757,0) -> 0 | M157: =IF(n>=$B757,$E758,0) -> 0 | N157: =IF(N156<fmax-dxx,N156,xMax) -> 2 | O157: =IF(N155<xMax,O155,0) -> 0 | P157: =IF(P156<fmax-dxxxx,P156,xMax) -> 2 | Q157: =IF(n>=$B757,$E757,0) -> 0 | X157: 0.913066
C158: 156 | D158: =D157+Sheet2!B$5 -> 0.775 | E158: 0.465484375 | G158: 154 | H158: 30.8 | K158: =IF(n>$C455,$K157+dx,xMax) -> 2 | L158: =L157 -> 0 | M158: =M157 -> 0 | N158: =IF(N157<xMax-dxx,N157+dxx,xMax) -> 2 | O158: =IF(AND(N158<=xMax,N157<xMax),$E456,0) -> 0 | P158: =IF(P157<xMax-dxxxx,P157+dxxxx,xMax) -> 2 | Q158: =Q157 -> 0 | X158: 1.8619375
C159: 157 | D159: =D158+Sheet2!B$5 -> 0.78 | E159: 0.474552 | G159: 155 | H159: 31 | K159: =$K158 -> 2 | L159: 0 | M159: =0 -> 0 | N159: =N158 -> 2 | O159: =0 -> 0 | P159: =P158 -> 2 | Q159: 0 | X159: 0.949104
C160: 158 | D160: =D159+Sheet2!B$5 -> 0.785 | E160: 0.483736625 | G160: 156 | H160: 31.2 | J160: 52 | K160: =IF(n>$C456,$K159,xMax) -> 2 | L160: =IF(n>=$B758,$E758,0) -> 0 | M160: =IF(n>=$B758,$E759,0) -> 0 | N160: =IF(N159<fmax-dxx,N159,xMax) -> 2 | O160: =IF(N158<xMax,O158,0) -> 0 | P160: =IF(P159<fmax-dxxxx,P159,xMax) -> 2 | Q160: =IF(n>=$B758,$E758,0) -> 0 | X160: 1.9349465
C161: 159 | D161: =D160+Sheet2!B$5 -> 0.79 | E161: 0.493039 | G161: 157 | H161: 31.4 | K161: =IF(n>$C456,$K160+dx,xMax) -> 2 | L161: =L160 -> 0 | M161: =M160 -> 0 | N161: =IF(N160<xMax-dxx,N160+dxx,xMax) -> 2 | O161: =IF(AND(N161<=xMax,N160<xMax),$E457,0) -> 0 | P161: =IF(P160<xMax-dxxxx,P160+dxxxx,xMax) -> 2 | Q161: =Q160 -> 0 | X161: 0.986078
C162: 160 | D162: =D161+Sheet2!B$5 -> 0.795 | E162: 0.502459875 | G162: 158 | H162: 31.6 | K162: =$K161 -> 2 | L162: 0 | M162: =0 -> 0 | N162: =N161 -> 2 | O162: =0 -> 0 | P162: =P161 -> 2 | Q162: 0 | X162: 2.0098395
C163: 161 | D163: =D162+Sheet2!B$5 -> 0.8 | E163: 0.512 | G163: 159 | H163: 31.8 | J163: 53 | K163: =IF(n>$C457,$K162,xMax) -> 2 | L163: =IF(n>=$B759,$E759,0) -> 0 | M163: =IF(n>=$B759,$E760,0) -> 0 | N163: =IF(N162<fmax-dxx,N162,xMax) -> 2 | O163: =IF(N161<xMax,O161,0) -> 0 | P163: =IF(P162<fmax-dxxxx,P162,xMax) -> 2 | Q163: =IF(n>=$B759,$E759,0) -> 0 | X163: 1.024
C164: 162 | D164: =D163+Sheet2!B$5 -> 0.805 | E164: 0.521660125 | G164: 160 | H164: 32 | K164: =IF(n>$C457,$K163+dx,xMax) -> 2 | L164: =L163 -> 0 | M164: =M163 -> 0 | N164: =IF(N163<xMax-dxx,N163+dxx,xMax) -> 2 | O164: =IF(AND(N164<=xMax,N163<xMax),$E458,0) -> 0 | P164: =IF(P163<xMax-dxxxx,P163+dxxxx,xMax) -> 2 | Q164: =Q163 -> 0 | X164: 2.0866405
C165: 163 | D165: =D164+Sheet2!B$5 -> 0.81 | E165: 0.531441 | G165: 161 | H165: 32.2 | K165: =$K164 -> 2 | L165: 0 | M165: =0 -> 0 | N165: =N164 -> 2 | O165: =0 -> 0 | P165: =P164 -> 2 | Q165: 0 | X165: 1.062882
C166: 164 | D166: =D165+Sheet2!B$5 -> 0.815 | E166: 0.541343375 | G166: 162 | H166: 32.4 | J166: 54 | K166: =IF(n>$C458,$K165,xMax) -> 2 | L166: =IF(n>=$B760,$E760,0) -> 0 | M166: =IF(n>=$B760,$E761,0) -> 0 | N166: =IF(N165<fmax-dxx,N165,xMax) -> 2 | O166: =IF(N164<xMax,O164,0) -> 0 | P166: =IF(P165<fmax-dxxxx,P165,xMax) -> 2 | Q166: =IF(n>=$B760,$E760,0) -> 0 | X166: 2.1653735
C167: 165 | D167: =D166+Sheet2!B$5 -> 0.82 | E167: 0.551368 | G167: 163 | H167: 32.6 | K167: =IF(n>$C458,$K166+dx,xMax) -> 2 | L167: =L166 -> 0 | M167: =M166 -> 0 | N167: =IF(N166<xMax-dxx,N166+dxx,xMax) -> 2 | O167: =IF(AND(N167<=xMax,N166<xMax),$E459,0) -> 0 | P167: =IF(P166<xMax-dxxxx,P166+dxxxx,xMax) -> 2 | Q167: =Q166 -> 0 | X167: 1.102736
C168: 166 | D168: =D167+Sheet2!B$5 -> 0.825 | E168: 0.561515625 | G168: 164 | H168: 32.8 | K168: =$K167 -> 2 | L168: 0 | M168: =0 -> 0 | N168: =N167 -> 2 | O168: =0 -> 0 | P168: =P167 -> 2 | Q168: 0 | X168: 2.2460625
C169: 167 | D169: =D168+Sheet2!B$5 -> 0.83 | E169: 0.571787 | G169: 165 | H169: 33 | J169: 55 | K169: =IF(n>$C459,$K168,xMax) -> 2 | L169: =IF(n>=$B761,$E761,0) -> 0 | M169: =IF(n>=$B761,$E762,0) -> 0 | N169: =IF(N168<fmax-dxx,N168,xMax) -> 2 | O169: =IF(N167<xMax,O167,0) -> 0 | P169: =IF(P168<fmax-dxxxx,P168,xMax) -> 2 | Q169: =IF(n>=$B761,$E761,0) -> 0 | X169: 1.143574
C170: 168 | D170: =D169+Sheet2!B$5 -> 0.835 | E170: 0.582182875 | G170: 166 | H170: 33.2 | K170: =IF(n>$C459,$K169+dx,xMax) -> 2 | L170: =L169 -> 0 | M170: =M169 -> 0 | N170: =IF(N169<xMax-dxx,N169+dxx,xMax) -> 2 | O170: =IF(AND(N170<=xMax,N169<xMax),$E460,0) -> 0 | P170: =IF(P169<xMax-dxxxx,P169+dxxxx,xMax) -> 2 | Q170: =Q169 -> 0 | X170: 2.3287315
C171: 169 | D171: =D170+Sheet2!B$5 -> 0.84 | E171: 0.592704 | G171: 167 | H171: 33.4 | K171: =$K170 -> 2 | L171: 0 | M171: =0 -> 0 | N171: =N170 -> 2 | O171: =0 -> 0 | P171: =P170 -> 2 | Q171: 0 | X171: 1.185408
C172: 170 | D172: =D171+Sheet2!B$5 -> 0.845 | E172: 0.603351125 | G172: 168 | H172: 33.6 | J172: 56 | K172: =IF(n>$C460,$K171,xMax) -> 2 | L172: =IF(n>=$B762,$E762,0) -> 0 | M172: =IF(n>=$B762,$E763,0) -> 0 | N172: =IF(N171<fmax-dxx,N171,xMax) -> 2 | O172: =IF(N170<xMax,O170,0) -> 0 | P172: =IF(P171<fmax-dxxxx,P171,xMax) -> 2 | Q172: =IF(n>=$B762,$E762,0) -> 0 | X172: 2.4134045
C173: 171 | D173: =D172+Sheet2!B$5 -> 0.85 | E173: 0.614125 | G173: 169 | H173: 33.8 | K173: =IF(n>$C460,$K172+dx,xMax) -> 2 | L173: =L172 -> 0 | M173: =M172 -> 0 | N173: =IF(N172<xMax-dxx,N172+dxx,xMax) -> 2 | O173: =IF(AND(N173<=xMax,N172<xMax),$E461,0) -> 0 | P173: =IF(P172<xMax-dxxxx,P172+dxxxx,xMax) -> 2 | Q173: =Q172 -> 0 | X173: 1.22825
C174: 172 | D174: =D173+Sheet2!B$5 -> 0.855 | E174: 0.625026375 | G174: 170 | H174: 34 | K174: =$K173 -> 2 | L174: 0 | M174: =0 -> 0 | N174: =N173 -> 2 | O174: =0 -> 0 | P174: =P173 -> 2 | Q174: 0 | X174: 2.5001055
C175: 173 | D175: =D174+Sheet2!B$5 -> 0.86 | E175: 0.636056 | G175: 171 | H175: 34.2 | J175: 57 | K175: =IF(n>$C461,$K174,xMax) -> 2 | L175: =IF(n>=$B763,$E763,0) -> 0 | M175: =IF(n>=$B763,$E764,0) -> 0 | N175: =IF(N174<fmax-dxx,N174,xMax) -> 2 | O175: =IF(N173<xMax,O173,0) -> 0 | P175: =IF(P174<fmax-dxxxx,P174,xMax) -> 2 | Q175: =IF(n>=$B763,$E763,0) -> 0 | X175: 1.272112
C176: 174 | D176: =D175+Sheet2!B$5 -> 0.865 | E176: 0.647214625 | G176: 172 | H176: 34.4 | K176: =IF(n>$C461,$K175+dx,xMax) -> 2 | L176: =L175 -> 0 | M176: =M175 -> 0 | N176: =IF(N175<xMax-dxx,N175+dxx,xMax) -> 2 | O176: =IF(AND(N176<=xMax,N175<xMax),$E462,0) -> 0 | P176: =IF(P175<xMax-dxxxx,P175+dxxxx,xMax) -> 2 | Q176: =Q175 -> 0 | X176: 2.5888585
C177: 175 | D177: =D176+Sheet2!B$5 -> 0.87 | E177: 0.658503 | G177: 173 | H177: 34.6 | K177: =$K176 -> 2 | L177: 0 | M177: =0 -> 0 | N177: =N176 -> 2 | O177: =0 -> 0 | P177: =P176 -> 2 | Q177: 0 | X177: 1.317006
C178: 176 | D178: =D177+Sheet2!B$5 -> 0.875 | E178: 0.669921875 | G178: 174 | H178: 34.8 | J178: 58 | K178: =IF(n>$C462,$K177,xMax) -> 2 | L178: =IF(n>=$B764,$E764,0) -> 0 | M178: =IF(n>=$B764,$E765,0) -> 0 | N178: =IF(N177<fmax-dxx,N177,xMax) -> 2 | O178: =IF(N176<xMax,O176,0) -> 0 | P178: =IF(P177<fmax-dxxxx,P177,xMax) -> 2 | Q178: =IF(n>=$B764,$E764,0) -> 0 | X178: 2.6796875
C179: 177 | D179: =D178+Sheet2!B$5 -> 0.88 | E179: 0.681472 | G179: 175 | H179: 35 | K179: =IF(n>$C462,$K178+dx,xMax) -> 2 | L179: =L178 -> 0 | M179: =M178 -> 0 | N179: =IF(N178<xMax-dxx,N178+dxx,xMax) -> 2 | O179: =IF(AND(N179<=xMax,N178<xMax),$E463,0) -> 0 | P179: =IF(P178<xMax-dxxxx,P178+dxxxx,xMax) -> 2 | Q179: =Q178 -> 0 | X179: 1.362944
C180: 178 | D180: =D179+Sheet2!B$5 -> 0.885 | E180: 0.693154125 | G180: 176 | H180: 35.2 | K180: =$K179 -> 2 | L180: 0 | M180: =0 -> 0 | N180: =N179 -> 2 | O180: =0 -> 0 | P180: =P179 -> 2 | Q180: 0 | X180: 2.7726165
C181: 179 | D181: =D180+Sheet2!B$5 -> 0.89 | E181: 0.704969 | G181: 177 | H181: 35.4 | J181: 59 | K181: =IF(n>$C463,$K180,xMax) -> 2 | L181: =IF(n>=$B765,$E765,0) -> 0 | M181: =IF(n>=$B765,$E766,0) -> 0 | N181: =IF(N180<fmax-dxx,N180,xMax) -> 2 | O181: =IF(N179<xMax,O179,0) -> 0 | P181: =IF(P180<fmax-dxxxx,P180,xMax) -> 2 | Q181: =IF(n>=$B765,$E765,0) -> 0 | X181: 1.409938
C182: 180 | D182: =D181+Sheet2!B$5 -> 0.895 | E182: 0.716917375 | G182: 178 | H182: 35.6 | K182: =IF(n>$C463,$K181+dx,xMax) -> 2 | L182: =L181 -> 0 | M182: =M181 -> 0 | N182: =IF(N181<xMax-dxx,N181+dxx,xMax) -> 2 | O182: =IF(AND(N182<=xMax,N181<xMax),$E464,0) -> 0 | P182: =IF(P181<xMax-dxxxx,P181+dxxxx,xMax) -> 2 | Q182: =Q181 -> 0 | X182: 2.8676695
C183: 181 | D183: =D182+Sheet2!B$5 -> 0.9 | E183: 0.729 | G183: 179 | H183: 35.8 | K183: =$K182 -> 2 | L183: 0 | M183: =0 -> 0 | N183: =N182 -> 2 | O183: =0 -> 0 | P183: =P182 -> 2 | Q183: 0 | X183: 1.458
C184: 182 | D184: =D183+Sheet2!B$5 -> 0.905 | E184: 0.741217625 | G184: 180 | H184: 36 | J184: 60 | K184: =IF(n>$C464,$K183,xMax) -> 2 | L184: =IF(n>=$B766,$E766,0) -> 0 | M184: =IF(n>=$B766,$E767,0) -> 0 | N184: =IF(N183<fmax-dxx,N183,xMax) -> 2 | O184: =IF(N182<xMax,O182,0) -> 0 | P184: =IF(P183<fmax-dxxxx,P183,xMax) -> 2 | Q184: =IF(n>=$B766,$E766,0) -> 0 | X184: 2.9648705
C185: 183 | D185: =D184+Sheet2!B$5 -> 0.91 | E185: 0.753571 | G185: 181 | H185: 36.2 | K185: =IF(n>$C464,$K184+dx,xMax) -> 2 | L185: =L184 -> 0 | M185: =M184 -> 0 | N185: =IF(N184<xMax-dxx,N184+dxx,xMax) -> 2 | O185: =IF(AND(N185<=xMax,N184<xMax),$E465,0) -> 0 | P185: =IF(P184<xMax-dxxxx,P184+dxxxx,xMax) -> 2 | Q185: =Q184 -> 0 | X185: 1.507142
C186: 184 | D186: =D185+Sheet2!B$5 -> 0.915 | E186: 0.766060875 | G186: 182 | H186: 36.4 | K186: =$K185 -> 2 | L186: 0 | M186: =0 -> 0 | N186: =N185 -> 2 | O186: =0 -> 0 | P186: =P185 -> 2 | Q186: 0 | X186: 3.0642435
C187: 185 | D187: =D186+Sheet2!B$5 -> 0.92 | E187: 0.778688 | G187: 183 | H187: 36.6 | J187: 61 | K187: =IF(n>$C465,$K186,xMax) -> 2 | L187: =IF(n>=$B767,$E767,0) -> 0 | M187: =IF(n>=$B767,$E768,0) -> 0 | N187: =IF(n>$C465,$K186,xMax) -> 2 | O187: =IF(n>$C465,$E465,0) -> 0 | P187: =IF(P186<fmax-dxxxx,P186,xMax) -> 2 | Q187: =IF(n>=$B767,$E767,0) -> 0 | X187: 1.557376
C188: 186 | D188: =D187+Sheet2!B$5 -> 0.925 | E188: 0.791453125 | G188: 184 | H188: 36.8 | K188: =IF(n>$C465,$K187+dx,xMax) -> 2 | L188: =L187 -> 0 | M188: =M187 -> 0 | N188: =IF(n>$C465,$K187+dx,xMax) -> 2 | O188: =IF(n>$C465,$E465,0) -> 0 | P188: =IF(P187<xMax-dxxxx,P187+dxxxx,xMax) -> 2 | Q188: =Q187 -> 0 | X188: 3.1658125
C189: 187 | D189: =D188+Sheet2!B$5 -> 0.93 | E189: 0.804357 | G189: 185 | H189: 37 | K189: =$K188 -> 2 | L189: 0 | M189: =0 -> 0 | N189: =$K188 -> 2 | O189: 0 | P189: =P188 -> 2 | Q189: 0 | X189: 1.608714
C190: 188 | D190: =D189+Sheet2!B$5 -> 0.935 | E190: 0.817400375 | G190: 186 | H190: 37.2 | J190: 62 | K190: =IF(n>$C466,$K189,xMax) -> 2 | L190: =IF(n>=$B768,$E768,0) -> 0 | M190: =IF(n>=$B768,$E769,0) -> 0 | N190: =IF(n>$C466,$K189,xMax) -> 2 | O190: =IF(n>$C466,$E466,0) -> 0 | P190: =IF(P189<fmax-dxxxx,P189,xMax) -> 2 | Q190: =IF(n>=$B768,$E768,0) -> 0 | X190: 3.2696015
C191: 189 | D191: =D190+Sheet2!B$5 -> 0.94 | E191: 0.830584 | G191: 187 | H191: 37.4 | K191: =IF(n>$C466,$K190+dx,xMax) -> 2 | L191: =L190 -> 0 | M191: =M190 -> 0 | N191: =IF(n>$C466,$K190+dx,xMax) -> 2 | O191: =IF(n>$C466,$E466,0) -> 0 | P191: =IF(P190<xMax-dxxxx,P190+dxxxx,xMax) -> 2 | Q191: =Q190 -> 0 | X191: 1.661168
C192: 190 | D192: =D191+Sheet2!B$5 -> 0.945 | E192: 0.843908625 | G192: 188 | H192: 37.6 | K192: =$K191 -> 2 | L192: 0 | M192: =0 -> 0 | N192: =$K191 -> 2 | O192: 0 | P192: =P191 -> 2 | Q192: 0 | X192: 3.3756345
C193: 191 | D193: =D192+Sheet2!B$5 -> 0.95 | E193: 0.857375 | G193: 189 | H193: 37.8 | J193: 63 | K193: =IF(n>$C467,$K192,xMax) -> 2 | L193: =IF(n>=$B769,$E769,0) -> 0 | M193: =IF(n>=$B769,$E770,0) -> 0 | N193: =IF(n>$C467,$K192,xMax) -> 2 | O193: =IF(n>$C467,$E467,0) -> 0 | P193: =IF(P192<fmax-dxxxx,P192,xMax) -> 2 | Q193: =IF(n>=$B769,$E769,0) -> 0 | X193: 1.71475
C194: 192 | D194: =D193+Sheet2!B$5 -> 0.955 | E194: 0.870983875 | G194: 190 | H194: 38 | K194: =IF(n>$C467,$K193+dx,xMax) -> 2 | L194: =L193 -> 0 | M194: =M193 -> 0 | N194: =IF(n>$C467,$K193+dx,xMax) -> 2 | O194: =IF(n>$C467,$E467,0) -> 0 | P194: =IF(P193<xMax-dxxxx,P193+dxxxx,xMax) -> 2 | Q194: =Q193 -> 0 | X194: 3.4839355
C195: 193 | D195: =D194+Sheet2!B$5 -> 0.96 | E195: =x^3 -> 0.884736 | G195: 191 | H195: 38.2 | K195: =$K194 -> 2 | L195: 0 | M195: =0 -> 0 | N195: =$K194 -> 2 | O195: 0 | P195: =P194 -> 2 | Q195: 0 | X195: 1.769472
C196: 194 | D196: =D195+Sheet2!B$5 -> 0.965 | E196: 0.898632125 | G196: 192 | H196: 38.4 | J196: 64 | K196: =IF(n>$C468,$K195,xMax) -> 2 | L196: =IF(n>=$B770,$E770,0) -> 0 | M196: =IF(n>=$B770,$E771,0) -> 0 | N196: =IF(n>$C468,$K195,xMax) -> 2 | O196: =IF(n>$C468,$E468,0) -> 0 | P196: =IF(P195<fmax-dxxxx,P195,xMax) -> 2 | Q196: =IF(n>=$B770,$E770,0) -> 0 | X196: 3.5945285
C197: 195 | D197: =D196+Sheet2!B$5 -> 0.97 | E197: 0.912673 | G197: 193 | H197: =H196+dx -> 38.6 | K197: =IF(n>$C468,$K196+dx,xMax) -> 2 | L197: =L196 -> 0 | M197: =M196 -> 0 | N197: =IF(n>$C468,$K196+dx,xMax) -> 2 | O197: =IF(n>$C468,$E468,0) -> 0 | P197: =IF(P196<xMax-dxxxx,P196+dxxxx,xMax) -> 2 | Q197: =Q196 -> 0 | X197: 1.825346
C198: 196 | D198: =D197+Sheet2!B$5 -> 0.975 | E198: 0.926859375 | G198: 194 | H198: 38.8 | K198: =$K197 -> 2 | L198: 0 | M198: =0 -> 0 | N198: =$K197 -> 2 | O198: 0 | P198: =P197 -> 2 | Q198: 0 | X198: 3.7074375
C199: 197 | D199: =D198+Sheet2!B$5 -> 0.98 | E199: 0.941192 | G199: 195 | H199: 39 | J199: 65 | K199: =IF(n>$C469,$K198,xMax) -> 2 | L199: =IF(n>=$B771,$E771,0) -> 0 | M199: =IF(n>=$B771,$E772,0) -> 0 | N199: =IF(n>$C469,$K198,xMax) -> 2 | O199: =IF(n>$C469,$E469,0) -> 0 | P199: =IF(P198<fmax-dxxxx,P198,xMax) -> 2 | Q199: =IF(n>=$B771,$E771,0) -> 0 | X199: 1.882384
C200: 198 | D200: =D199+Sheet2!B$5 -> 0.985 | E200: 0.955671625 | G200: 196 | H200: 39.2 | K200: =IF(n>$C469,$K199+dx,xMax) -> 2 | L200: =L199 -> 0 | M200: =M199 -> 0 | N200: =IF(n>$C469,$K199+dx,xMax) -> 2 | O200: =IF(n>$C469,$E469,0) -> 0 | P200: =IF(P199<xMax-dxxxx,P199+dxxxx,xMax) -> 2 | Q200: =Q199 -> 0 | X200: 3.8226865
... 656 more rows

Sheet Defining Function
A1: Defining a Function in Excel
A3: Computers have very specific rules you must follow when defining a function. If you don't, the program will either not work at all or will work incorrectly.
A5: 1. The Variable used should be the one named in the instruction, usually x, though sometimes y, t, Q (for an angle theta),
A6: or even x and y (for a function of two variables).
A8: 2. Order of Operations: There five arithmetic operations, addition (+), subtraction (-), multiplication (*), division (/), and exponentiation or power (^). When computers see any of these operation symbols, they perform the indicated steps in a very particular order. First, the power is done. Second, products and quotients of adjacent terms is done. Third, and last, sums and differences of adjacent terms are done. So, in 10*x^3 + 5*x – 7, say with x = 2, the first pass only calculates 2^3 and ignores the multiplications and the sums and differences to calculate 2^3 = 8. The second pass looks at 10*8 + 5*2 – 7 and only does the multiplications, so it produces 80 + 10 - 7. The third pass looks at the +’s and –‘s to produce 80 + 10 – 7 = 83.
A10: 3. Parentheses If you need an operation involving more than two adjacent terms, as in Ö4^3 + 6^2, the computer would take the square root of 4 to produce 2^3 + 6^2; it would then cube the 2 and square the 6 to produce 8 + 36; and finally it would add the 8 and the 36 to get 44. If you actually wanted the square root of the entire expression, you would need to use parentheses, as in Ö(4^3 + 6^2) to tell the computer to do all the operations inside the parentheses before taking the square root. Therefore, it would calculate (4^3 + 6^2) = 64 + 36 = 100 and then take the square root of Ö100 = 10.
A12: 4. Built-In Functions Computer programs have built-in functions for most common algebraic functions. In Excel, the square root function is denoted by SQRT(…), so SQRT(100) = 10. Alternatively, you could enter it as 100^.5 or 100^(1/2); notice that parentheses are needed to have the ½ done first. The common trig functions are SIN (…), COS (…), and TAN (…), where the arguments are automatically interpreted as being in radians, not degrees. The logarithm to the base 10 is represented by LOG (…) and the logarithm with the base e, known as the natural logarithm, is LN (…). The corresponding exponential function with base e is EXP (x). If x is the variable, then each of these would be SQRT (x), SIN (x), COS (x), TAN (x), LOG (x) (for log with base 10 ), LN (x) (for log with base e ), and EXP (x).

Sheet Sheet1
